{"text_format":"1","workbook":"xlsx","n_sheets":11,"sheets":["Inicio","soat_varios_emi","Emision_varias","Vh","Rehacer_Varios","RRGG","SOAT","Una_solicitud SOAT","AMI","Una_solicitud","reglas"],"not_rendered":{"charts":0,"images":7,"macros":1,"external_links":0,"defined_names":19,"comments":4,"pivot_tables":0},"unopened":[],"bounds":{"document_bytes":16777216,"sheet_cells":100000,"rows_first":2000,"rows_last":500,"rows_between":2000,"halvings":0,"cell_chars":16384,"cell_head_chars":4096},"cells_cut":0,"cells_raw":0,"read":"whole","date_system":"1900"}

{"sheet":"Inicio","index":0,"n_rows":37,"n_cols":9,"rows_kept":37,"cut":false,"hidden":false,"merged":[]}
["Versión Mayo 2020"]
[]
[]
[]
[]
[]
[]
[]
[]
[]
[]
[]
[]
[]
[]
[null,"*Solo completar los datos por el cual desea rehacer"]
[]
[]
[]
[]
[]
[]
[]
[]
[]
[]
[]
[]
[]
[]
[]
[]
[]
[]
[]
[]
[null,null,null,null,null,null,null,null,"Debe decir : "]

{"sheet":"soat_varios_emi","index":1,"n_rows":94,"n_cols":23,"rows_kept":94,"cut":false,"hidden":true,"merged":[[8,14,8,15],[11,14,13,17],[12,2,12,4],[12,6,12,7],[12,8,12,9],[12,10,12,12],[13,2,13,4],[13,6,13,7],[13,8,13,9],[13,10,13,12],[15,3,15,5],[0,0,4,4],[5,1,6,8],[8,2,8,4],[8,6,8,7],[11,2,11,12]]}
[null,null,null,null,null,null,"*",null,null,null,null,null,null,null,null,null,null,null,null,null,null,null,"Estimados Señores, \nSe adjunta solicitud \nSaludos, "]
[null,null,null,null,null,"Asunto :",{"$f":"+ASUNTO3","v":" /  SOAT Seleccione Planilla Flota / Corredor :  / "},null,null,null,{"$f":"C14&\" /  \"&K9&\" \"&G9&\" Planilla Flota / Corredor : \"&C9&\" / \"&IF(M9=\"\",\"\",\"2003 - \"&M9)","v":" /  SOAT Seleccione Planilla Flota / Corredor :  / "},null,"*"]
[null,null,null,null,null,"Correo :",{"$error":"#N/A"}]
[]
[]
[null," Solicitud de Emisión/Inclusión Varias"]
[]
[]
[null,"Corredor:",null,null,null,"Tipo de Solicitud:","Seleccione",null," ","Producto :","SOAT","Póliza :",null,null,null,null,null,null,null,{"$f":"VLOOKUP(G9,reglas!$F$171:$G$176,2,0)","v":{"$error":"#N/A"}},{"$error":"#N/A"}]
[]
[]
[null,null,"Contratante"]
[null,null,"Nombres y Apellidos o Razon social",null,null,"Tipo de Dcto","Nro de Dcto",null,"Correo electronico",null,"Dirección(Opcional)"]
[null,null,null,null,null,"Seleccione"]
[]
[null,null,null,{"$f":"IF(K9=\"brevete\",\"Datos del conductor\",\"Datos del Asegurado\")","v":"Datos del Asegurado"},null,null,{"$f":"IF(K9=\"brevete\",\"Datos del brevete\",IF(K9=\"Daño propio\",\"Datos del Responsable\",\"Datos del Responsable\"))","v":"Datos del Responsable"},null,{"$f":"IF(K9=\"exhibición de placas\",\"Vigencia\",\"\")","v":""},"Datos del vehículo",null,null,null,null,null,null,null,null,null,"Financiamiento"]
[null,"Inicio de vigencia","Fin de vigencia","Tipo de Documento","Nro Doc","Nombre y Apellidos",{"$f":"IF(K9=\"brevete\",\"\",\"Tipo de Documento\")","v":"Tipo de Documento"},{"$f":"IF(K9=\"brevete\",\"Nro de Licencia\",IF(K9=\"Exhibición de placas\",\"Inicio\",\"Nro Doc\"))","v":"Nro Doc"},{"$f":"IF(K9=\"brevete\",\" \",IF(K9=\"exhibición de placas\",\"Fin\",\"Nombre y Apellidos\"))","v":"Nombre y Apellidos"},"Tipo de Vh.","Clase de Vh.","Marca","Modelo","Año","Placa","Motor","Serie","Uso","Ocupantes","Forma de Pago","Nro de cuotas","Ruta","Tipo de Soat"]
[null,null,null,null,null,null,null,null,null,null,null,null,null,null,null,null,null,null,null,null,null,null,"Seleccione"]
[null,null,null,null,null,null,null,null,null,null,null,null,null,null,null,null,null,null,null,null,null,null,"Seleccione"]
[null,null,null,null,null,null,null,null,null,null,null,null,null,null,null,null,null,null,null,null,null,null,"Seleccione"]
[null,null,null,null,null,null,null,null,null,null,null,null,null,null,null,null,null,null,null,null,null,null,"Seleccione"]
[null,null,null,null,null,null,null,null,null,null,null,null,null,null,null,null,null,null,null,null,null,null,"Seleccione"]
[null,null,null,null,null,null,null,null,null,null,null,null,null,null,null,null,null,null,null,null,null,null,"Seleccione"]
[null,null,null,null,null,null,null,null,null,null,null,null,null,null,null,null,null,null,null,null,null,null,"Seleccione"]
[null,null,null,null,null,null,null,null,null,null,null,null,null,null,null,null,null,null,null,null,null,null,"Seleccione"]
[null,null,null,null,null,null,null,null,null,null,null,null,null,null,null,null,null,null,null,null,null,null,"Seleccione"]
[null,null,null,null,null,null,null,null,null,null,null,null,null,null,null,null,null,null,null,null,null,null,"Seleccione"]
[null,null,null,null,null,null,null,null,null,null,null,null,null,null,null,null,null,null,null,null,null,null,"Seleccione"]
[null,null,null,null,null,null,null,null,null,null,null,null,null,null,null,null,null,null,null,null,null,null,"Seleccione"]
[null,null,null,null,null,null,null,null,null,null,null,null,null,null,null,null,null,null,null,null,null,null,"Seleccione"]
[null,null,null,null,null,null,null,null,null,null,null,null,null,null,null,null,null,null,null,null,null,null,"Seleccione"]
[null,null,null,null,null,null,null,null,null,null,null,null,null,null,null,null,null,null,null,null,null,null,"Seleccione"]
[null,null,null,null,null,null,null,null,null,null,null,null,null,null,null,null,null,null,null,null,null,null,"Seleccione"]
[null,null,null,null,null,null,null,null,null,null,null,null,null,null,null,null,null,null,null,null,null,null,"Seleccione"]
["x",null,null,null,null,null,null,null,null,null,null,null,null,null,null,null,null,null,null,null,null,null,"Seleccione"]
[null,null,null,null,null,null,null,null,null,null,null,null,null,null,null,null,null,null,null,null,null,null,"Seleccione"]
[null,null,null,null,null,null,null,null,null,null,null,null,null,null,null,null,null,null,null,null,null,null,"Seleccione"]
[null,null,null,null,null,null,null,null,null,null,null,null,null,null,null,null,null,null,null,null,null,null,"Seleccione"]
[null,null,null,null,null,null,null,null,null,null,null,null,null,null,null,null,null,null,null,null,null,null,"Seleccione"]
[null,null,null,null,null,null,null,null,null,null,null,null,null,null,null,null,null,null,null,null,null,null,"Seleccione"]
[null,null,null,null,null,null,null,null,null,null,null,null,null,null,null,null,null,null,null,null,null,null,"Seleccione"]
[null,null,null,null,null,null,null,null,null,null,null,null,null,null,null,null,null,null,null,null,null,null,"Seleccione"]
[null,null,null,null,null,null,null,null,null,null,null,null,null,null,null,null,null,null,null,null,null,null,"Seleccione"]
[null,null,null,null,null,null,null,null,null,null,null,null,null,null,null,null,null,null,null,null,null,null,"Seleccione"]
[null,null,null,null,null,null,null,null,null,null,null,null,null,null,null,null,null,null,null,null,null,null,"Seleccione"]
[null,null,null,null,null,null,null,null,null,null,null,null,null,null,null,null,null,null,null,null,null,null,"Seleccione"]
[null,null,null,null,null,null,null,null,null,null,null,null,null,null,null,null,null,null,null,null,null,null,"Seleccione"]
[null,null,null,null,null,null,null,null,null,null,null,null,null,null,null,null,null,null,null,null,null,null,"Seleccione"]
[null,null,null,null,null,null,null,null,null,null,null,null,null,null,null,null,null,null,null,null,null,null,"Seleccione"]
[null,null,null,null,null,null,null,null,null,null,null,null,null,null,null,null,null,null,null,null,null,null,"Seleccione"]
[null,null,null,null,null,null,null,null,null,null,null,null,null,null,null,null,null,null,null,null,null,null,"Seleccione"]
[null,null,null,null,null,null,null,null,null,null,null,null,null,null,null,null,null,null,null,null,null,null,"Seleccione"]
[null,null,null,null,null,null,null,null,null,null,null,null,null,null,null,null,null,null,null,null,null,null,"Seleccione"]
[null,null,null,null,null,null,null,null,null,null,null,null,null,null,null,null,null,null,null,null,null,null,"Seleccione"]
[null,null,null,null,null,null,null,null,null,null,null,null,null,null,null,null,null,null,null,null,null,null,"Seleccione"]
[null,null,null,null,null,null,null,null,null,null,null,null,null,null,null,null,null,null,null,null,null,null,"Seleccione"]
[null,null,null,null,null,null,null,null,null,null,null,null,null,null,null,null,null,null,null,null,null,null,"Seleccione"]
[null,null,null,null,null,null,null,null,null,null,null,null,null,null,null,null,null,null,null,null,null,null,"Seleccione"]
[null,null,null,null,null,null,null,null,null,null,null,null,null,null,null,null,null,null,null,null,null,null,"Seleccione"]
[null,null,null,null,null,null,null,null,null,null,null,null,null,null,null,null,null,null,null,null,null,null,"Seleccione"]
[null,null,null,null,null,null,null,null,null,null,null,null,null,null,null,null,null,null,null,null,null,null,"Seleccione"]
[null,null,null,null,null,null,null,null,null,null,null,null,null,null,null,null,null,null,null,null,null,null,"Seleccione"]
[null,null,null,null,null,null,null,null,null,null,null,null,null,null,null,null,null,null,null,null,null,null,"Seleccione"]
[null,null,null,null,null,null,null,null,null,null,null,null,null,null,null,null,null,null,null,null,null,null,"Seleccione"]
[null,null,null,null,null,null,null,null,null,null,null,null,null,null,null,null,null,null,null,null,null,null,"Seleccione"]
[null,null,null,null,null,null,null,null,null,null,null,null,null,null,null,null,null,null,null,null,null,null,"Seleccione"]
[null,null,null,null,null,null,null,null,null,null,null,null,null,null,null,null,null,null,null,null,null,null,"Seleccione"]
[null,null,null,null,null,null,null,null,null,null,null,null,null,null,null,null,null,null,null,null,null,null,"Seleccione"]
[null,null,null,null,null,null,null,null,null,null,null,null,null,null,null,null,null,null,null,null,null,null,"Seleccione"]
[null,null,null,null,null,null,null,null,null,null,null,null,null,null,null,null,null,null,null,null,null,null,"Seleccione"]
[null,null,null,null,null,null,null,null,null,null,null,null,null,null,null,null,null,null,null,null,null,null,"Seleccione"]
[null,null,null,null,null,null,null,null,null,null,null,null,null,null,null,null,null,null,null,null,null,null,"Seleccione"]
[null,null,null,null,null,null,null,null,null,null,null,null,null,null,null,null,null,null,null,null,null,null,"Seleccione"]
[null,null,null,null,null,null,null,null,null,null,null,null,null,null,null,null,null,null,null,null,null,null,"Seleccione"]
[null,null,null,null,null,null,null,null,null,null,null,null,null,null,null,null,null,null,null,null,null,null,"Seleccione"]
[null,null,null,null,null,null,null,null,null,null,null,null,null,null,null,null,null,null,null,null,null,null,"Seleccione"]
[null,null,null,null,null,null,null,null,null,null,null,null,null,null,null,null,null,null,null,null,null,null,"Seleccione"]
[null,null,null,null,null,null,null,null,null,null,null,null,null,null,null,null,null,null,null,null,null,null,"Seleccione"]
[null,null,null,null,null,null,null,null,null,null,null,null,null,null,null,null,null,null,null,null,null,null,"Seleccione"]
[null,null,null,null,null,null,null,null,null,null,null,null,null,null,null,null,null,null,null,null,null,null,"Seleccione"]
[null,null,null,null,null,null,null,null,null,null,null,null,null,null,null,null,null,null,null,null,null,null,"Seleccione"]
[null,null,null,null,null,null,null,null,null,null,null,null,null,null,null,null,null,null,null,null,null,null,"Seleccione"]
[null,null,null,null,null,null,null,null,null,null,null,null,null,null,null,null,null,null,null,null,null,null,"Seleccione"]
[null,null,null,null,null,null,null,null,null,null,null,null,null,null,null,null,null,null,null,null,null,null,"Seleccione"]
[null,null,null,null,null,null,null,null,null,null,null,null,null,null,null,null,null,null,null,null,null,null,"Seleccione"]
[null,null,null,null,null,null,null,null,null,null,null,null,null,null,null,null,null,null,null,null,null,null,"Seleccione"]
[null,null,null,null,null,null,null,null,null,null,null,null,null,null,null,null,null,null,null,null,null,null,"Seleccione"]
[null,null,null,null,null,null,null,null,null,null,null,null,null,null,null,null,null,null,null,null,null,null,"Seleccione"]
[null,null,null,null,null,null,null,null,null,null,null,null,null,null,null,null,null,null,null,null,null,null,"Seleccione"]
[null,null,null,null,null,null,null,null,null,null,null,null,null,null,null,null,null,null,null,null,null,null,"Seleccione"]
[null,null,null,null,null,null,null,null,null,null,null,null,null,null,null,null,null,null,null,null,null,null,"Seleccione"]
[null,null,null,null,null,null,null,null,null,null,null,null,null,null,null,null,null,null,null,null,null,null,"Seleccione"]
[null,null,null,null,null,null,null,null,null,null,null,null,null,null,null,null,null,null,null,null,null,null,"Seleccione"]
[null,null,null,null,null,null,null,null,null,null,null,null,null,null,null,null,null,null,null,null,null,null,"Seleccione"]

{"sheet":"Emision_varias","index":2,"n_rows":94,"n_cols":29,"rows_kept":94,"cut":false,"hidden":true,"merged":[[0,0,4,4],[8,2,8,4],[5,1,6,8],[8,6,8,7],[11,2,11,12],[11,14,13,17],[15,3,15,5],[13,6,13,7],[12,2,12,4],[13,2,13,4],[12,10,12,12],[13,10,13,12],[12,6,12,7],[13,8,13,9],[12,8,12,9]]}
[null,null,null,null,null,null,"*",null,null,null,null,null,null,null,null,null,null,null,null,null,null,null,null,null,null,null,"Estimados Señores, \nSe adjunta solicitud \nSaludos, "]
[null,null,null,null,null,"Asunto :",{"$f":"+ASUNTO3","v":" / Planilla Flota / Corredor :  / "},null,null,null,{"$f":"C14&\" / \"&\"Planilla Flota / Corredor : \"&C9&\" / \"&M9","v":" / Planilla Flota / Corredor :  / "}]
[null,null,null,null,null,"Correo :","recepcion@rimac.com.pe"]
[]
[]
[null," Solicitud de Emisión/Inclusión Varias"]
[]
[]
[null,"Corredor:",null,null,null,"Tipo de Solicitud:","Póliza Nueva",null,null,"Producto :","Daño Propio","Póliza :"]
[]
[]
[null,null,"Contratante"]
[null,null,"Nombres y Apellidos o Razon social",null,null,"Tipo de Dcto","Nro de Dcto",null,"Correo electronico",null,"Dirección(Opcional)"]
[null,null,null,null,null,"Seleccione"]
[]
[null,null,null,{"$f":"IF(K9=\"brevete\",\"Datos del conductor\",\"Datos del Asegurado\")","v":"Datos del Asegurado"},null,null,{"$f":"IF(K9=\"brevete\",\"Datos del brevete\",IF(K9=\"Daño propio\",\"Datos del Responsable\",\"Datos del Responsable\"))","v":"Datos del Responsable"},null,{"$f":"IF(K9=\"exhibición de placas\",\"Vigencia\",\"\")","v":""},"Datos del vehículo",null,null,null,null,null,null,null,null,null,null,null,null,null,null,"Inspección",null,null,"Financiamiento"]
[null,"Inicio de vigencia","Fin de vigencia","Tipo de Documento","Nro Doc","Nombre y Apellidos",{"$f":"IF(K9=\"brevete\",\"\",\"Tipo de Documento\")","v":"Tipo de Documento"},{"$f":"IF(K9=\"brevete\",\"Nro de Licencia\",IF(K9=\"Exhibición de placas\",\"Inicio\",\"Nro Doc\"))","v":"Nro Doc"},{"$f":"IF(K9=\"brevete\",\" \",IF(K9=\"exhibición de placas\",\"Fin\",\"Nombre y Apellidos\"))","v":"Nombre y Apellidos"},"Tipo de Vh.","Clase de Vh.","Marca","Modelo","Año","Placa","Motor","Serie","Uso","Suma Aseg.","Ocupantes","Tipo de plan","Especificar\nplan",{"$f":"IF(K9=\"Responsabilidad Civil - TPU\",\"Vias\",\"Endosatario\")","v":"Endosatario"},"Nombre de Contacto","Telefono de contacto","Correo electrónico","Forma de Pago","Nro de cuotas","Nro de Pago fácil"]
[null,null,null,null,null,null,null,null,null,null,null,null,null,null,null,null,null,null,null,null,"Seleccione"]
[null,null,null,null,null,null,null,null,null,null,null,null,null,null,null,null,null,null,null,null,"Seleccione"]
[null,null,null,null,null,null,null,null,null,null,null,null,null,null,null,null,null,null,null,null,"Seleccione"]
[null,null,null,null,null,null,null,null,null,null,null,null,null,null,null,null,null,null,null,null,"Seleccione"]
[null,null,null,null,null,null,null,null,null,null,null,null,null,null,null,null,null,null,null,null,"Seleccione"]
[null,null,null,null,null,null,null,null,null,null,null,null,null,null,null,null,null,null,null,null,"Seleccione"]
[null,null,null,null,null,null,null,null,null,null,null,null,null,null,null,null,null,null,null,null,"Seleccione"]
[null,null,null,null,null,null,null,null,null,null,null,null,null,null,null,null,null,null,null,null,"Seleccione"]
[null,null,null,null,null,null,null,null,null,null,null,null,null,null,null,null,null,null,null,null,"Seleccione"]
[null,null,null,null,null,null,null,null,null,null,null,null,null,null,null,null,null,null,null,null,"Seleccione"]
[null,null,null,null,null,null,null,null,null,null,null,null,null,null,null,null,null,null,null,null,"Seleccione"]
[null,null,null,null,null,null,null,null,null,null,null,null,null,null,null,null,null,null,null,null,"Seleccione"]
[null,null,null,null,null,null,null,null,null,null,null,null,null,null,null,null,null,null,null,null,"Seleccione"]
[null,null,null,null,null,null,null,null,null,null,null,null,null,null,null,null,null,null,null,null,"Seleccione"]
[null,null,null,null,null,null,null,null,null,null,null,null,null,null,null,null,null,null,null,null,"Seleccione"]
[null,null,null,null,null,null,null,null,null,null,null,null,null,null,null,null,null,null,null,null,"Seleccione"]
[null,null,null,null,null,null,null,null,null,null,null,null,null,null,null,null,null,null,null,null,"Seleccione"]
[null,null,null,null,null,null,null,null,null,null,null,null,null,null,null,null,null,null,null,null,"Seleccione"]
[null,null,null,null,null,null,null,null,null,null,null,null,null,null,null,null,null,null,null,null,"Seleccione"]
[null,null,null,null,null,null,null,null,null,null,null,null,null,null,null,null,null,null,null,null,"Seleccione"]
[null,null,null,null,null,null,null,null,null,null,null,null,null,null,null,null,null,null,null,null,"Seleccione"]
[null,null,null,null,null,null,null,null,null,null,null,null,null,null,null,null,null,null,null,null,"Seleccione"]
[null,null,null,null,null,null,null,null,null,null,null,null,null,null,null,null,null,null,null,null,"Seleccione"]
[null,null,null,null,null,null,null,null,null,null,null,null,null,null,null,null,null,null,null,null,"Seleccione"]
[null,null,null,null,null,null,null,null,null,null,null,null,null,null,null,null,null,null,null,null,"Seleccione"]
[null,null,null,null,null,null,null,null,null,null,null,null,null,null,null,null,null,null,null,null,"Seleccione"]
[null,null,null,null,null,null,null,null,null,null,null,null,null,null,null,null,null,null,null,null,"Seleccione"]
[null,null,null,null,null,null,null,null,null,null,null,null,null,null,null,null,null,null,null,null,"Seleccione"]
[null,null,null,null,null,null,null,null,null,null,null,null,null,null,null,null,null,null,null,null,"Seleccione"]
[null,null,null,null,null,null,null,null,null,null,null,null,null,null,null,null,null,null,null,null,"Seleccione"]
[null,null,null,null,null,null,null,null,null,null,null,null,null,null,null,null,null,null,null,null,"Seleccione"]
[null,null,null,null,null,null,null,null,null,null,null,null,null,null,null,null,null,null,null,null,"Seleccione"]
[null,null,null,null,null,null,null,null,null,null,null,null,null,null,null,null,null,null,null,null,"Seleccione"]
[null,null,null,null,null,null,null,null,null,null,null,null,null,null,null,null,null,null,null,null,"Seleccione"]
[null,null,null,null,null,null,null,null,null,null,null,null,null,null,null,null,null,null,null,null,"Seleccione"]
[null,null,null,null,null,null,null,null,null,null,null,null,null,null,null,null,null,null,null,null,"Seleccione"]
[null,null,null,null,null,null,null,null,null,null,null,null,null,null,null,null,null,null,null,null,"Seleccione"]
[null,null,null,null,null,null,null,null,null,null,null,null,null,null,null,null,null,null,null,null,"Seleccione"]
[null,null,null,null,null,null,null,null,null,null,null,null,null,null,null,null,null,null,null,null,"Seleccione"]
[null,null,null,null,null,null,null,null,null,null,null,null,null,null,null,null,null,null,null,null,"Seleccione"]
[null,null,null,null,null,null,null,null,null,null,null,null,null,null,null,null,null,null,null,null,"Seleccione"]
[null,null,null,null,null,null,null,null,null,null,null,null,null,null,null,null,null,null,null,null,"Seleccione"]
[null,null,null,null,null,null,null,null,null,null,null,null,null,null,null,null,null,null,null,null,"Seleccione"]
[null,null,null,null,null,null,null,null,null,null,null,null,null,null,null,null,null,null,null,null,"Seleccione"]
[null,null,null,null,null,null,null,null,null,null,null,null,null,null,null,null,null,null,null,null,"Seleccione"]
[null,null,null,null,null,null,null,null,null,null,null,null,null,null,null,null,null,null,null,null,"Seleccione"]
[null,null,null,null,null,null,null,null,null,null,null,null,null,null,null,null,null,null,null,null,"Seleccione"]
[null,null,null,null,null,null,null,null,null,null,null,null,null,null,null,null,null,null,null,null,"Seleccione"]
[null,null,null,null,null,null,null,null,null,null,null,null,null,null,null,null,null,null,null,null,"Seleccione"]
[null,null,null,null,null,null,null,null,null,null,null,null,null,null,null,null,null,null,null,null,"Seleccione"]
[null,null,null,null,null,null,null,null,null,null,null,null,null,null,null,null,null,null,null,null,"Seleccione"]
[null,null,null,null,null,null,null,null,null,null,null,null,null,null,null,null,null,null,null,null,"Seleccione"]
[null,null,null,null,null,null,null,null,null,null,null,null,null,null,null,null,null,null,null,null,"Seleccione"]
[null,null,null,null,null,null,null,null,null,null,null,null,null,null,null,null,null,null,null,null,"Seleccione"]
[null,null,null,null,null,null,null,null,null,null,null,null,null,null,null,null,null,null,null,null,"Seleccione"]
[null,null,null,null,null,null,null,null,null,null,null,null,null,null,null,null,null,null,null,null,"Seleccione"]
[null,null,null,null,null,null,null,null,null,null,null,null,null,null,null,null,null,null,null,null,"Seleccione"]
[null,null,null,null,null,null,null,null,null,null,null,null,null,null,null,null,null,null,null,null,"Seleccione"]
[null,null,null,null,null,null,null,null,null,null,null,null,null,null,null,null,null,null,null,null,"Seleccione"]
[null,null,null,null,null,null,null,null,null,null,null,null,null,null,null,null,null,null,null,null,"Seleccione"]
[null,null,null,null,null,null,null,null,null,null,null,null,null,null,null,null,null,null,null,null,"Seleccione"]
[null,null,null,null,null,null,null,null,null,null,null,null,null,null,null,null,null,null,null,null,"Seleccione"]
[null,null,null,null,null,null,null,null,null,null,null,null,null,null,null,null,null,null,null,null,"Seleccione"]
[null,null,null,null,null,null,null,null,null,null,null,null,null,null,null,null,null,null,null,null,"Seleccione"]
[null,null,null,null,null,null,null,null,null,null,null,null,null,null,null,null,null,null,null,null,"Seleccione"]
[null,null,null,null,null,null,null,null,null,null,null,null,null,null,null,null,null,null,null,null,"Seleccione"]
[null,null,null,null,null,null,null,null,null,null,null,null,null,null,null,null,null,null,null,null,"Seleccione"]
[null,null,null,null,null,null,null,null,null,null,null,null,null,null,null,null,null,null,null,null,"Seleccione"]
[null,null,null,null,null,null,null,null,null,null,null,null,null,null,null,null,null,null,null,null,"Seleccione"]
[null,null,null,null,null,null,null,null,null,null,null,null,null,null,null,null,null,null,null,null,"Seleccione"]
[null,null,null,null,null,null,null,null,null,null,null,null,null,null,null,null,null,null,null,null,"Seleccione"]
[null,null,null,null,null,null,null,null,null,null,null,null,null,null,null,null,null,null,null,null,"Seleccione"]
[null,null,null,null,null,null,null,null,null,null,null,null,null,null,null,null,null,null,null,null,"Seleccione"]
[null,null,null,null,null,null,null,null,null,null,null,null,null,null,null,null,null,null,null,null,"Seleccione"]
[null,null,null,null,null,null,null,null,null,null,null,null,null,null,null,null,null,null,null,null,"Seleccione"]
[null,null,null,null,null,null,null,null,null,null,null,null,null,null,null,null,null,null,null,null,"Seleccione"]
[null,null,null,null,null,null,null,null,null,null,null,null,null,null,null,null,null,null,null,null,"Seleccione"]

{"sheet":"Vh","index":3,"n_rows":119,"n_cols":29,"rows_kept":119,"cut":false,"hidden":false,"merged":[[107,2,109,5],[107,7,109,10],[61,2,61,5],[62,2,62,5],[63,2,63,5],[64,2,64,5],[59,9,59,10],[60,9,60,10],[61,9,61,10],[62,9,62,10],[59,2,59,5],[71,3,71,4],[71,5,71,6],[71,7,71,8],[71,9,71,10],[72,1,72,2],[72,3,72,4],[72,5,72,6],[72,7,72,8],[72,9,72,10],[78,7,78,8],[74,1,74,8],[74,9,74,10],[78,1,78,2],[56,1,56,10],[59,12,64,13],[76,2,76,5],[76,8,76,10],[66,2,67,10],[69,1,69,10],[71,1,71,2],[71,12,72,14],[75,11,76,15],[5,1,6,5],[8,2,8,4],[12,1,12,10],[13,1,13,2],[13,3,13,4],[13,5,13,6],[13,7,13,8],[13,9,13,10],[1,6,1,7],[2,6,2,7],[51,2,54,10],[16,1,16,8],[16,9,16,10],[23,1,23,8],[23,9,23,10],[32,12,35,13],[25,12,28,13],[20,4,21,10],[18,1,18,2],[18,3,18,6],[18,9,18,10],[30,1,30,10],[25,2,25,5],[25,8,25,10],[34,2,35,10],[32,3,32,5],[32,1,32,2],[27,2,28,10],[49,2,49,5],[49,6,49,7],[49,8,49,10],[101,12,105,13],[99,1,99,10],[92,1,92,10],[94,2,94,5],[94,9,94,10],[89,1,89,2],[89,3,89,4],[89,5,89,6],[89,7,89,8],[89,9,89,10],[95,12,97,14],[94,12,94,13],[96,2,96,5],[96,9,98,10],[14,9,14,10],[18,12,21,13],[20,2,20,3],[37,1,37,10],[81,2,81,5],[86,2,86,5],[88,1,88,2],[88,3,88,4],[88,5,88,6],[88,7,88,8],[88,9,88,10],[83,1,83,2],[83,3,83,4],[63,9,63,10],[64,9,64,10],[42,1,42,10],[44,2,45,10],[47,1,47,10],[79,1,79,2],[79,3,79,4],[79,5,79,6],[39,2,40,10],[49,12,54,13],[60,2,60,5],[112,1,112,10],[115,1,115,2],[115,7,115,8],[116,1,116,2],[116,7,116,8],[12,12,14,14],[11,12,11,13],[78,9,78,10],[83,5,83,6],[83,7,83,8],[83,9,83,10],[84,1,84,2],[84,3,84,4],[84,5,84,6],[84,7,84,8],[84,9,84,10],[79,7,79,8],[79,9,79,10],[78,3,78,4],[78,5,78,6],[14,1,14,2],[14,3,14,4],[14,5,14,6],[14,7,14,8],[115,3,115,6],[116,3,116,6],[118,3,118,5],[118,7,118,8],[119,3,119,5],[120,3,120,5],[121,3,121,5],[122,3,122,5],[123,3,123,5],[124,3,124,5],[125,3,125,5],[126,3,126,5],[127,3,127,5],[128,3,128,5],[119,7,119,8],[120,7,120,8],[121,7,121,8],[122,7,122,8],[123,7,123,8],[124,7,124,8],[125,7,125,8],[126,7,126,8],[127,7,127,8],[128,7,128,8]]}
[]
[null,null,null,null,null,null,null,null," / Rehacer pólizaEndoso de regularización de inspección /  2101 -  -  / Corredor : ",null,null,null,"*",null,null,null,null,null,null,null,null,null,null,"recepcion@rimac.com.pe"]
[null,null,null,null,null,null,null,null,"recepcionformatos@rimac.com.pe",null,null,null,null,null,null,null,null,null,null,null,{"$f":"B15&\" / \" &W19 & \" /  \"&E11&\" - \"&G11& \" - \" &I11&\" / Corredor : \" &C9","v":" / AnulaciónEndoso de regularización de inspección /  2101 -  -  / Corredor : "},null,null,null,"Anulacion",{"$f":"VLOOKUP(Y3,reglas!F183:$G$193,2,0)","v":"recepcionformatos@rimac.com.pe"}]
[null,null,null,null,null,null,null,null,null,null,null,null,null,null,null,null,null,null,null,null,"Por favor considerar el asunto y correo electrónico que se muestra en el formato"]
["Version 5.20"]
[null," Solicitud de Endosos",null,null,null,null,null,null,null,null,null,null,null,null,null,null,null,null,null,null,"Estimados Señores, \nSe adjunta solicitud \nSaludos, "]
[]
[]
[null,"Corredor:",null,null,null,null,{"$f":"IF(O12=\"*\",\"RUC de Corredor \",\"Inicio de Endoso\")","v":"RUC de Corredor "},":",null,null,null,null,null,null,null,null,null,null,null,null,null,null,"Endoso de regularización de inspección"]
[null,null,null,null,"Nro Producto",null,"Nro de Póliza",null,"Nro certificado"]
[null,"Producto :","Daño Propio","-",{"$f":"IF(C11=\"Seleccione\",\"Ingrese \",VLOOKUP(C11,reglas!C32:D37,2,0))","v":2101},"-",null,"-",null,null,null,null,null,null,null,null,null,null,null,null,null,null,"Anulación"]
[null,null,null,null,null,null,null,null,null,null,null,null,null,null,"*"]
[null,"Contratante"]
[null,"Nombres y Apellidos o Razon social",null,"Tipo de Dcto",null,"Nro de Dcto",null,"Correo Electrónico (Obligatorio)",null,"Dirección",null,"Teléfono"]
[null,null,null,"Seleccione"]
[]
[null,"Endoso de Prórroga",null,null,null,null,null,null,null,{"$f":"IF(O18>\"90\",\" \",\"AUTOGESTIONABLE\")","v":"AUTOGESTIONABLE"}]
[null,null,null,null,null,null,null,null,null,null,null,null,null,null,{"$f":"J19-D19","v":"00:00:00"}]
[null,"Inicio de Prórroga :",null,null,null,null,null,null,"Fin de Prórroga :",null,null,null,"Prorrogas mayores a 90 días pasaran por un flujo de autorización, si cuenta con el VB adjuntar al correo",null,null,null,null,null,null,null,null,null,{"$f":"IF(COUNTBLANK(W9:W18)<6,\"Endosos Varios\",X19)","v":"AnulaciónEndoso de regularización de inspección"},{"$f":"W12&W13&W14&W15&W16&W17&W18&W11&W10&W9","v":"AnulaciónEndoso de regularización de inspección"}]
[]
[null,null,"Observación :"]
[]
[]
[null,"Endoso de Cesión de derecho",null,null,null,null,null,null,null,{"$f":"IF(C26=\"Inclusión\",\"AUTOGESTIONABLE\",\"\")","v":""}]
[]
[null,"Tipo de solicitud :","Seleccione",null,null,null,null,"Endosatario :",null,null,null,null,{"$f":"IF(OR(C26=\"Exclusión\",C26=\"Modificación\"),\"Solo para los casos en la que la póliza o certificado se encuentran endosados se enviará Carta al banco con un tiempo de respuesta de 15 días hábiles\",\"\")","v":""},null,null,{"$f":"IF(OR(C26=\"Seleccione\",C26=\"Exclusión\"),\"1\",\"2\")","v":"1"}]
[]
[null,"Observación :"]
[]
[]
[null,"Rehabilitación"]
[]
[null,"Fecha de rehabilitación :",null,null,null,null,null,null,null,null,null,null,"Recuerde que esta operación pasará por un flujo de autorización, adjuntar carta de no siniestralidad"]
[]
[null,"Observación :"]
[]
[]
[]
[]
[]
[]
[]
[]
[]
[]
[]
[]
[null,"Endoso de Modificación de Cláusula / Cobertura/ Deducible"]
[]
[null,"Tipo de solicitud :","Inclusión",null,null,null,"-",null,"Seleccione",null,null,null,"Si lo solicitado se encuentra fuera de su NT recuerde que esta operación pasará por un flujo de autorización"]
[]
[null,"Observación :"]
[]
[]
[]
[]
[null,"Endoso de Datos de la Unidad"]
[null,null,null,null,"Complete los campos que desee modificar"]
[]
[null,"Clase de Vehículo :",null,null,null,null,null,null,"Placa/Rodaje :",null,null,null,"Si lo solicitado altera la prima neta pasará por un flujo de autorización"]
[null,"Tipo de Vehículo :",null,null,null,null,null,null,"Motor : ",null,null,null,null,null,null,null,null,null,null,null,null,null,null,null,null,null,null,null,{"$f":"CONCATENATE(C60,C61,C62,C63,C64,C65,J60,J61,J62,J63,J64,J65)","v":""}]
[null,"Marca:",null,null,null,null,null,null,"Serie :"]
[null,"Modelo :",null,null,null,null,null,null,"Año de fabricación :"]
[null,"Uso de vehículo :",null,null,null,null,null,null,"Nro de ocupantes :"]
[null,"Vehículo a gas : ",null,null,null,null,null,null,"Suma Asegurada :"]
[]
[null,"Observación :"]
[]
[]
[null,"Actualización de datos del cliente"]
[null,null,null,null,"Complete los campos que desee modificar"]
[null,"Nombres y Apellidos o Razon social",null,"Tipo de Dcto",null,"Nro de Dcto",null,"Correo electronico",null,"Dirección(Opcional)",null,null,"Para esta operación copiar al correo: verificaciondedatos@rimac.com.pe"]
[null,null,null,"Seleccione"]
[]
[null,"Cambio de Contratante/ Asegurado/ Responsable de Pago",null,null,null,null,null,null,null,"AUTOGESTIONABLE"]
[null,null,null,null,null,null,null,null,null,null,null,"Si en caso solicita el cambio de responsable de pago desde inicio de vigencia,previamente deberá gestionarlo con su Ejec.Comercial"]
[{"$f":"IF(C77=\"Seleccione\",\"1\",\"2\")","v":"1"},"¿Qué desea modificar ?","Seleccione",null,null,null,null,"Observación"]
[]
[null,"Nombres y Apellidos o Razon social",null,"Tipo de Dcto",null,"Nro de Dcto",null,"Correo electronico",null,"Dirección(Opcional)"]
[null,null,null,"Seleccione",null,null,null,null,null,null,null,null,null,null,null,null,null,null,null,null,null,null,null,null,null,null,null,null,{"$f":"CONCATENATE(B80,B85,B90)","v":""}]
[]
[{"$f":"IF(C82=\"Seleccione\",\"1\",\"2\")","v":"1"},"¿Qué desea modificar ?","Seleccione"]
[]
[null,"Nombres y Apellidos o Razon social",null,"Tipo de Dcto",null,"Nro de Dcto",null,"Correo electronico",null,"Dirección(Opcional)"]
[null,null,null,"Seleccione"]
[]
[{"$f":"IF(C87=\"Seleccione\",\"1\",\"2\")","v":"1"},"¿Qué desea modificar ?","Seleccione"]
[]
[null,"Nombres y Apellidos o Razon social",null,"Tipo de Dcto",null,"Nro de Dcto",null,"Correo electronico",null,"Dirección(Opcional)"]
[null,null,null,"Seleccione"]
[]
[]
[null,"Anulación"]
[]
[null,"Tipo de solicitud","Anulación",null,null,null,null,null,{"$f":"IF(C95=\"Anulación\",\"Fecha de Anulación :\",\"Fecha de exclusión : \")","v":"Fecha de Anulación :"},null,null,null,"NOTA"]
[null,null,null,null,null,null,null,null,null,null,null,null,"Recuerda que se anula toda la póliza"]
[null,"Motivo de anulación:","Seleccione",null,null,null,null,null,"Descripción",{"$f":"VLOOKUP(C97,reglas!$C$47:$D$56,2,0)","v":" "}]
[]
[]
[null,"Rehacer póliza"]
[]
[null,"Escriba  una \"X\" en el recuadro del campo por el cual desea rehacer la póliza, si no encuentra el campo deseado gestionarlo como endoso"]
[]
[null,null,"Prima :",null,null,null,"Cambio de Plan :"]
[]
[null,null,"Suma Asegurada :",null,null,null,"Cambio de Vigencia :"]
[]
[null,"Dice :",null,null,null,null,"Debe decir :"]
[]
[]
[]
[]
[null,"Endoso de regularización de inspección"]
[]
[null,"Datos del contacto :"]
[null,"Nombres y Apellidos",null,"Nro de Celular",null,null,null,"Nro de Teléfono"]
[]
[]
[null,"Marca","Modelo ","Placa/Rodaje",null,null,"Motor","Año de fabricación"]

{"sheet":"Rehacer_Varios","index":4,"n_rows":95,"n_cols":35,"rows_kept":95,"cut":false,"hidden":true,"merged":[[0,0,4,4],[5,1,6,8],[8,2,8,4],[11,2,11,12],[12,2,12,4],[12,6,12,7],[12,8,12,9],[12,10,12,12],[13,2,13,4],[13,6,13,7],[13,8,13,9],[13,10,13,12],[16,9,16,11],[16,6,16,8]]}
[null,null,null,null,null,null,"*",null,null,null,null,null,null,null,null,null,null,null,null,null,null,null,null,null,null,null,"Estimados Señores, \nSe adjunta solicitud \nSaludos, "]
[null,null,null,null,null,"Asunto :",{"$f":"+ASUNTO3","v":"- / Rehacer / Corredor :  / "},null,null,null,{"$f":"B19&\"-\"&C14&\" / \"& A19 &\" / Corredor : \"&C9&\" / \"&C19","v":"- / Rehacer / Corredor :  / "}]
[null,null,null,null,null,"Correo :","recepcion@rimac.com.pe"]
[]
[]
[null," Solicitud de Emisión/Inclusión Varias"]
[]
[]
[null,"Corredor:",null,null,null,"Producto :","Daño Propio"]
[]
[]
[null,null,"Contratante Principal"]
[null,null,"Nombres y Apellidos o Razon social",null,null,"Tipo de Dcto","Nro de Dcto",null,"Correo electronico",null,"Dirección(Opcional)"]
[null,null,null,null,null,"Seleccione"]
[]
[null,null,null,null,null,null,"Solo complete los campos por el cual desea rehacer su póliza"]
[null,null,null,null,null,null,"Datos del Contratante",null,null,{"$f":"IF(G9=\"brevete\",\"Datos del conductor\",\"Datos del Asegurado\")","v":"Datos del Asegurado"},null,null,{"$f":"IF(G9=\"brevete\",\"Datos del brevete\",IF(G9=\"Daño propio\",\"Datos del Responsable\",\"Datos del Responsable\"))","v":"Datos del Responsable"},null,{"$f":"IF(G9=\"exhibición de placas\",\"Vigencia\",\"\")","v":""},"Datos del vehículo",null,null,null,null,null,null,null,null,null,null,null,null,null,null,"Inspección",null,null,"Financiamiento"]
[{"$f":"COUNT(C19:C95)","v":0},"Cod Producto","Nro de Póliza","Nro de Certificado","Inicio de vigencia","Fin de vigencia","Tipo de Documento","Nro Doc","Nombre y Apellidos","Tipo de Documento","Nro Doc","Nombre y Apellidos",{"$f":"IF(G9=\"brevete\",\"\",\"Tipo de Documento\")","v":"Tipo de Documento"},{"$f":"IF(G9=\"brevete\",\"Nro de Licencia\",IF(G9=\"Exhibición de placas\",\"Inicio\",\"Nro Doc\"))","v":"Nro Doc"},{"$f":"IF(G9=\"brevete\",\" \",IF(G9=\"exhibición de placas\",\"Fin\",\"Nombre y Apellidos\"))","v":"Nombre y Apellidos"},"Tipo de Vh.","Clase de Vh.","Marca","Modelo","Año","Placa","Motor","Serie","Uso","Suma Aseg.","Ocupantes","Tipo de plan","Especificar\nplan",{"$f":"IF(G9=\"Responsabilidad Civil - TPU\",\"Vias\",\"Endosatario\")","v":"Endosatario"},"Nombre de Contacto","Telefono de contacto","Correo electrónico","Forma de Pago","Nro de cuotas","Nro de Pago fácil"]
[{"$f":"IF(A18>5,\"Rehacer Planilla Flota\",\"Rehacer\")","v":"Rehacer"},null,null,null,null,null,null,null,null,null,null,null,null,null,null,null,null,null,null,null,null,null,null,null,null,null,"Seleccione"]
[null,null,null,null,null,null,null,null,null,null,null,null,null,null,null,null,null,null,null,null,null,null,null,null,null,null,"Seleccione"]
[null,null,null,null,null,null,null,null,null,null,null,null,null,null,null,null,null,null,null,null,null,null,null,null,null,null,"Seleccione"]
[null,null,null,null,null,null,null,null,null,null,null,null,null,null,null,null,null,null,null,null,null,null,null,null,null,null,"Seleccione"]
[null,null,null,null,null,null,null,null,null,null,null,null,null,null,null,null,null,null,null,null,null,null,null,null,null,null,"Seleccione"]
[null,null,null,null,null,null,null,null,null,null,null,null,null,null,null,null,null,null,null,null,null,null,null,null,null,null,"Seleccione"]
[null,null,null,null,null,null,null,null,null,null,null,null,null,null,null,null,null,null,null,null,null,null,null,null,null,null,"Seleccione"]
[null,null,null,null,null,null,null,null,null,null,null,null,null,null,null,null,null,null,null,null,null,null,null,null,null,null,"Seleccione"]
[null,null,null,null,null,null,null,null,null,null,null,null,null,null,null,null,null,null,null,null,null,null,null,null,null,null,"Seleccione"]
[null,null,null,null,null,null,null,null,null,null,null,null,null,null,null,null,null,null,null,null,null,null,null,null,null,null,"Seleccione"]
[null,null,null,null,null,null,null,null,null,null,null,null,null,null,null,null,null,null,null,null,null,null,null,null,null,null,"Seleccione"]
[null,null,null,null,null,null,null,null,null,null,null,null,null,null,null,null,null,null,null,null,null,null,null,null,null,null,"Seleccione"]
[null,null,null,null,null,null,null,null,null,null,null,null,null,null,null,null,null,null,null,null,null,null,null,null,null,null,"Seleccione"]
[null,null,null,null,null,null,null,null,null,null,null,null,null,null,null,null,null,null,null,null,null,null,null,null,null,null,"Seleccione"]
[null,null,null,null,null,null,null,null,null,null,null,null,null,null,null,null,null,null,null,null,null,null,null,null,null,null,"Seleccione"]
[null,null,null,null,null,null,null,null,null,null,null,null,null,null,null,null,null,null,null,null,null,null,null,null,null,null,"Seleccione"]
[null,null,null,null,null,null,null,null,null,null,null,null,null,null,null,null,null,null,null,null,null,null,null,null,null,null,"Seleccione"]
[null,null,null,null,null,null,null,null,null,null,null,null,null,null,null,null,null,null,null,null,null,null,null,null,null,null,"Seleccione"]
[null,null,null,null,null,null,null,null,null,null,null,null,null,null,null,null,null,null,null,null,null,null,null,null,null,null,"Seleccione"]
[null,null,null,null,null,null,null,null,null,null,null,null,null,null,null,null,null,null,null,null,null,null,null,null,null,null,"Seleccione"]
[null,null,null,null,null,null,null,null,null,null,null,null,null,null,null,null,null,null,null,null,null,null,null,null,null,null,"Seleccione"]
[null,null,null,null,null,null,null,null,null,null,null,null,null,null,null,null,null,null,null,null,null,null,null,null,null,null,"Seleccione"]
[null,null,null,null,null,null,null,null,null,null,null,null,null,null,null,null,null,null,null,null,null,null,null,null,null,null,"Seleccione"]
[null,null,null,null,null,null,null,null,null,null,null,null,null,null,null,null,null,null,null,null,null,null,null,null,null,null,"Seleccione"]
[null,null,null,null,null,null,null,null,null,null,null,null,null,null,null,null,null,null,null,null,null,null,null,null,null,null,"Seleccione"]
[null,null,null,null,null,null,null,null,null,null,null,null,null,null,null,null,null,null,null,null,null,null,null,null,null,null,"Seleccione"]
[null,null,null,null,null,null,null,null,null,null,null,null,null,null,null,null,null,null,null,null,null,null,null,null,null,null,"Seleccione"]
[null,null,null,null,null,null,null,null,null,null,null,null,null,null,null,null,null,null,null,null,null,null,null,null,null,null,"Seleccione"]
[null,null,null,null,null,null,null,null,null,null,null,null,null,null,null,null,null,null,null,null,null,null,null,null,null,null,"Seleccione"]
[null,null,null,null,null,null,null,null,null,null,null,null,null,null,null,null,null,null,null,null,null,null,null,null,null,null,"Seleccione"]
[null,null,null,null,null,null,null,null,null,null,null,null,null,null,null,null,null,null,null,null,null,null,null,null,null,null,"Seleccione"]
[null,null,null,null,null,null,null,null,null,null,null,null,null,null,null,null,null,null,null,null,null,null,null,null,null,null,"Seleccione"]
[null,null,null,null,null,null,null,null,null,null,null,null,null,null,null,null,null,null,null,null,null,null,null,null,null,null,"Seleccione"]
[null,null,null,null,null,null,null,null,null,null,null,null,null,null,null,null,null,null,null,null,null,null,null,null,null,null,"Seleccione"]
[null,null,null,null,null,null,null,null,null,null,null,null,null,null,null,null,null,null,null,null,null,null,null,null,null,null,"Seleccione"]
[null,null,null,null,null,null,null,null,null,null,null,null,null,null,null,null,null,null,null,null,null,null,null,null,null,null,"Seleccione"]
[null,null,null,null,null,null,null,null,null,null,null,null,null,null,null,null,null,null,null,null,null,null,null,null,null,null,"Seleccione"]
[null,null,null,null,null,null,null,null,null,null,null,null,null,null,null,null,null,null,null,null,null,null,null,null,null,null,"Seleccione"]
[null,null,null,null,null,null,null,null,null,null,null,null,null,null,null,null,null,null,null,null,null,null,null,null,null,null,"Seleccione"]
[null,null,null,null,null,null,null,null,null,null,null,null,null,null,null,null,null,null,null,null,null,null,null,null,null,null,"Seleccione"]
[null,null,null,null,null,null,null,null,null,null,null,null,null,null,null,null,null,null,null,null,null,null,null,null,null,null,"Seleccione"]
[null,null,null,null,null,null,null,null,null,null,null,null,null,null,null,null,null,null,null,null,null,null,null,null,null,null,"Seleccione"]
[null,null,null,null,null,null,null,null,null,null,null,null,null,null,null,null,null,null,null,null,null,null,null,null,null,null,"Seleccione"]
[null,null,null,null,null,null,null,null,null,null,null,null,null,null,null,null,null,null,null,null,null,null,null,null,null,null,"Seleccione"]
[null,null,null,null,null,null,null,null,null,null,null,null,null,null,null,null,null,null,null,null,null,null,null,null,null,null,"Seleccione"]
[null,null,null,null,null,null,null,null,null,null,null,null,null,null,null,null,null,null,null,null,null,null,null,null,null,null,"Seleccione"]
[null,null,null,null,null,null,null,null,null,null,null,null,null,null,null,null,null,null,null,null,null,null,null,null,null,null,"Seleccione"]
[null,null,null,null,null,null,null,null,null,null,null,null,null,null,null,null,null,null,null,null,null,null,null,null,null,null,"Seleccione"]
[null,null,null,null,null,null,null,null,null,null,null,null,null,null,null,null,null,null,null,null,null,null,null,null,null,null,"Seleccione"]
[null,null,null,null,null,null,null,null,null,null,null,null,null,null,null,null,null,null,null,null,null,null,null,null,null,null,"Seleccione"]
[null,null,null,null,null,null,null,null,null,null,null,null,null,null,null,null,null,null,null,null,null,null,null,null,null,null,"Seleccione"]
[null,null,null,null,null,null,null,null,null,null,null,null,null,null,null,null,null,null,null,null,null,null,null,null,null,null,"Seleccione"]
[null,null,null,null,null,null,null,null,null,null,null,null,null,null,null,null,null,null,null,null,null,null,null,null,null,null,"Seleccione"]
[null,null,null,null,null,null,null,null,null,null,null,null,null,null,null,null,null,null,null,null,null,null,null,null,null,null,"Seleccione"]
[null,null,null,null,null,null,null,null,null,null,null,null,null,null,null,null,null,null,null,null,null,null,null,null,null,null,"Seleccione"]
[null,null,null,null,null,null,null,null,null,null,null,null,null,null,null,null,null,null,null,null,null,null,null,null,null,null,"Seleccione"]
[null,null,null,null,null,null,null,null,null,null,null,null,null,null,null,null,null,null,null,null,null,null,null,null,null,null,"Seleccione"]
[null,null,null,null,null,null,null,null,null,null,null,null,null,null,null,null,null,null,null,null,null,null,null,null,null,null,"Seleccione"]
[null,null,null,null,null,null,null,null,null,null,null,null,null,null,null,null,null,null,null,null,null,null,null,null,null,null,"Seleccione"]
[null,null,null,null,null,null,null,null,null,null,null,null,null,null,null,null,null,null,null,null,null,null,null,null,null,null,"Seleccione"]
[null,null,null,null,null,null,null,null,null,null,null,null,null,null,null,null,null,null,null,null,null,null,null,null,null,null,"Seleccione"]
[null,null,null,null,null,null,null,null,null,null,null,null,null,null,null,null,null,null,null,null,null,null,null,null,null,null,"Seleccione"]
[null,null,null,null,null,null,null,null,null,null,null,null,null,null,null,null,null,null,null,null,null,null,null,null,null,null,"Seleccione"]
[null,null,null,null,null,null,null,null,null,null,null,null,null,null,null,null,null,null,null,null,null,null,null,null,null,null,"Seleccione"]
[null,null,null,null,null,null,null,null,null,null,null,null,null,null,null,null,null,null,null,null,null,null,null,null,null,null,"Seleccione"]
[null,null,null,null,null,null,null,null,null,null,null,null,null,null,null,null,null,null,null,null,null,null,null,null,null,null,"Seleccione"]
[null,null,null,null,null,null,null,null,null,null,null,null,null,null,null,null,null,null,null,null,null,null,null,null,null,null,"Seleccione"]
[null,null,null,null,null,null,null,null,null,null,null,null,null,null,null,null,null,null,null,null,null,null,null,null,null,null,"Seleccione"]
[null,null,null,null,null,null,null,null,null,null,null,null,null,null,null,null,null,null,null,null,null,null,null,null,null,null,"Seleccione"]
[null,null,null,null,null,null,null,null,null,null,null,null,null,null,null,null,null,null,null,null,null,null,null,null,null,null,"Seleccione"]
[null,null,null,null,null,null,null,null,null,null,null,null,null,null,null,null,null,null,null,null,null,null,null,null,null,null,"Seleccione"]
[null,null,null,null,null,null,null,null,null,null,null,null,null,null,null,null,null,null,null,null,null,null,null,null,null,null,"Seleccione"]
[null,null,null,null,null,null,null,null,null,null,null,null,null,null,null,null,null,null,null,null,null,null,null,null,null,null,"Seleccione"]
[null,null,null,null,null,null,null,null,null,null,null,null,null,null,null,null,null,null,null,null,null,null,null,null,null,null,"Seleccione"]
[null,null,null,null,null,null,null,null,null,null,null,null,null,null,null,null,null,null,null,null,null,null,null,null,null,null,"Seleccione"]
[null,null,null,null,null,null,null,null,null,null,null,null,null,null,null,null,null,null,null,null,null,null,null,null,null,null,"Seleccione"]
[null,null,null,null,null,null,null,null,null,null,null,null,null,null,null,null,null,null,null,null,null,null,null,null,null,null,"Seleccione"]

{"sheet":"RRGG","index":5,"n_rows":317,"n_cols":25,"rows_kept":317,"cut":false,"hidden":false,"merged":[[169,12,172,13],[19,11,19,13],[19,14,19,15],[140,12,143,14],[308,1,308,10],[311,1,311,2],[311,4,311,6],[312,5,312,6],[313,5,313,6],[266,12,269,14],[275,12,277,14],[253,1,253,2],[253,3,253,6],[255,1,255,10],[258,1,261,1],[258,2,261,10],[258,12,261,14],[250,1,250,2],[250,3,250,6],[251,1,251,2],[251,3,251,6],[252,1,252,2],[252,3,252,6],[247,1,247,2],[279,1,279,10],[282,1,282,2],[282,4,282,5],[283,1,283,2],[284,1,284,2],[285,1,285,2],[263,1,263,10],[266,1,269,1],[266,2,269,10],[273,1,273,10],[276,2,276,10],[315,5,315,6],[316,5,316,6],[286,1,286,2],[287,1,287,2],[290,1,290,10],[293,1,296,1],[293,2,296,10],[299,1,299,10],[302,1,305,1],[302,2,305,10],[314,5,314,6],[247,3,247,6],[248,1,248,2],[248,3,248,6],[249,1,249,2],[249,3,249,6],[243,1,243,2],[243,3,243,6],[244,3,244,6],[245,1,245,2],[245,3,245,6],[246,3,246,6],[238,1,238,10],[240,1,240,2],[240,3,240,6],[241,1,241,2],[241,3,241,6],[242,1,242,2],[242,3,242,6],[215,1,215,10],[217,2,217,10],[219,1,219,10],[222,2,222,10],[226,12,229,14],[233,2,234,10],[194,1,194,10],[198,1,201,1],[198,2,201,10],[204,1,204,10],[206,2,206,3],[208,1,211,1],[208,2,211,10],[161,2,161,5],[161,9,161,10],[184,1,184,10],[186,1,186,2],[186,3,186,5],[186,12,192,13],[188,1,191,1],[188,2,191,10],[168,2,168,10],[171,2,172,10],[176,1,176,10],[178,2,178,5],[178,12,181,13],[180,1,181,1],[180,2,181,10],[161,12,166,13],[162,2,162,5],[162,9,162,10],[163,2,163,5],[163,9,163,10],[164,2,164,5],[164,9,164,10],[165,2,165,5],[165,9,165,10],[151,1,151,2],[151,3,151,4],[151,5,151,6],[151,7,151,8],[151,9,151,10],[152,1,152,2],[152,3,152,4],[152,5,152,6],[152,7,152,8],[152,9,152,10],[166,2,166,5],[166,9,166,10],[155,1,156,1],[155,2,156,10],[158,1,158,10],[137,1,137,10],[139,2,139,5],[141,1,141,2],[141,3,141,4],[141,5,141,6],[141,7,141,8],[141,9,141,10],[142,1,142,2],[142,3,142,4],[147,1,147,2],[147,3,147,4],[147,5,147,6],[147,7,147,8],[147,9,147,10],[149,2,149,5],[142,5,142,6],[142,7,142,8],[142,9,142,10],[144,2,144,5],[146,1,146,2],[146,3,146,4],[146,5,146,6],[146,7,146,8],[146,9,146,10],[116,5,116,6],[117,5,117,6],[118,5,118,6],[122,2,123,10],[126,1,126,10],[130,12,133,13],[132,2,133,10],[105,2,106,10],[108,1,108,10],[112,5,112,6],[113,5,113,6],[114,5,114,6],[115,5,115,6],[89,4,89,8],[90,4,90,8],[91,4,91,8],[92,1,95,1],[96,1,101,1],[103,1,103,2],[103,4,103,8],[73,1,73,10],[75,12,79,13],[76,1,77,1],[76,2,77,10],[82,1,82,10],[85,12,88,13],[86,1,91,1],[86,5,86,10],[87,4,87,8],[88,4,88,8],[64,1,64,10],[66,1,66,2],[66,3,66,10],[66,12,71,13],[67,1,67,2],[69,2,70,10],[52,2,52,10],[55,1,55,10],[57,2,57,10],[57,12,62,13],[58,2,58,10],[60,2,61,10],[25,12,28,13],[49,2,49,5],[49,6,49,8],[49,9,49,10],[40,2,40,10],[43,2,43,5],[43,6,43,8],[43,9,43,10],[26,3,26,5],[26,1,26,2],[27,1,27,2],[27,3,27,5],[32,1,32,2],[32,3,32,5],[32,6,32,10],[33,1,33,2],[33,3,33,5],[38,1,38,2],[38,3,38,5],[39,6,39,10],[45,6,45,10],[1,6,1,7],[2,6,2,7],[19,5,19,6],[19,7,19,8],[19,9,19,10],[21,1,21,10],[34,2,34,10],[37,2,37,5],[37,6,37,8],[37,9,37,10],[23,1,23,2],[23,3,23,6],[25,2,25,5],[25,6,25,8],[25,9,25,10],[19,1,19,2],[19,3,19,4],[28,2,28,10],[31,2,31,5],[31,6,31,8],[31,9,31,10],[26,6,26,10],[27,6,27,10],[33,6,33,10],[10,12,10,13],[5,1,6,5],[8,2,8,4],[17,1,17,10],[18,1,18,2],[18,3,18,4],[18,5,18,6],[18,7,18,8],[18,9,18,10],[17,11,17,15],[18,11,18,13],[18,14,18,15],[7,15,7,16],[8,15,10,17],[51,6,51,10],[38,6,38,10],[39,1,39,2],[39,3,39,5],[44,1,44,2],[44,3,44,5],[44,6,44,10],[45,1,45,2],[45,3,45,5],[50,1,50,2],[50,3,50,5],[50,6,50,10],[46,2,46,10],[51,1,51,2],[51,3,51,5]]}
[null,null,null,null,null,null,null,null,null,null,null,null,null,null,null,null,"contratante","endoso","póliza","Corredor","Correo",null,null,null,"Por favor considerar el asunto y correo electrónico que se muestra en el formato"]
[null,null,null,null,null,null,"Asunto : ",null,"LABORATORIOS FARMACEUTICOS MARKOS S.A / Rehabilitación /  Pólizas Varias /  Corredor :OTES S.A.",null,null,null,"*",null,null,null,{"$f":"+B20","v":0},{"$f":"+S82","v":"Rehabilitación"},{"$f":"IF(G13=\"\",E11&\" - \"&G11&\" - \"&I11,\"Pólizas Varias\")","v":" -  - "},{"$f":"+C9","v":0},{"$f":"+X82","v":"recepcionformatos@rimac.com.pe"}]
[null,null,null,null,null,null,"Correo :",null,"recepcionformatos@rimac.com.pe",null,null,null,null,null,{"$f":"Q2&\" / \"&R2&\" /  \"&S2&\" /  Corredor :\"&T2","v":"0 / Rehabilitación /   -  -  /  Corredor :0"},null,null,null,null,null,null,null,null,"Estimados Señores, \nSe adjunta solicitud \nSaludos, "]
[]
[]
[null," Solicitud de Endosos"]
[null,null,null,null,null,null,null,null,null,null,null,null,null,null,"*"]
[null,null,null,null,null,null,null,null,null,null,null,null,null,null,null,"NOTA"]
[null,"Corredor:",null,null,null,null,"Vigencia del endoso",":",null,"al",null,null,null,null,null,"En caso no contemos con el correo electrónico y dirección se le solicitará"]
[null,null,null,null,null,null,"Nro de Póliza",null,"Nro certificado"]
[null,"Producto :",null,"-",null,"-",null,"-",null,null,null,"Cuantas pólizas desea modificar :","Más de 1",null,null,null,null,null,null,null,null,null,null,1]
[null,null,null,null,null,null,null,null,null,null,null,null,null,null,null,null,null,null,null,null,null,null,null,"Más de 1"]
[null,"Producto :",null,"-",null,null,null,"-"]
[null,"Producto :",null,"-",null,null,null,"-"]
[null,"Producto :",null,"-",null,null,null,"-"]
[null,"Producto :",null,"-",null,null,null,"-"]
[]
[null,"Contratante",null,null,null,null,null,null,null,null,null,"Responsable de pago"]
[null,"Nombres y Apellidos o Razón social",null,"Tipo de Dcto",null,"Nro. de Dcto",null,"Correo electrónico (Opcional)",null,"Dirección (Opcional)",null,"Nombres y Apellidos o Razón social",null,null,"Nro. de Dcto"]
[]
[null,null,null,null,null,null,null,null,null,null,null,"Indicar la Ubicación al inicio del seguro."]
[null,"Endoso de Cesión de derecho"]
[]
[null,"Cuantas solicitudes requiere :",null,"Seleccione"]
[]
[null,"Tipo de solicitud :","Modificación",null,null,null,"Para Modificación o Exclusión indicar # Operación :",null,null,null,null,null,"Sumas Endosadas mayores a la suma asegurada pasaran a evaluación",null,null,null,null,null,null,null,null,null,null,"Seleccione"]
[null,"Endosatario",null,"Valor Endosado",null,null,"Bien / Materia de crédito :",null,null,null,null,null,null,null,null,null,null,null,"Seleccione"," ",null,null,null,"1 Solicitud"]
[null,"Seleccione",null,null,null,null,null,null,null,null,null,null,null,null,null,null,null,null,"SCOTIABANK PERU SAA",255,null,null,null,"Más de 1 hasta 5 solicitudes"]
[null,"Ubicación de Riesgo",null,null,null,null,null,null,null,null,null,null,null,null,null,null,null,null,"BBVA BANCO CONTINENTAL",256]
[null,"N° de Leasing",null,null,null,null,null,null,null,null,null,null,null,null,null,null,null,null,"MIBANCO - BANCO DE LA MICROEMPRESA S.A.",208026]
[null,null,null,null,null,null,null,null,null,null,null,null,null,null,null,null,null,null,"BANCO DE COMERCIO",10013,null,null,null,"Seleccione"]
[null,"Tipo de solicitud :","Seleccione",null,null,null,"Para Modificación o Exclusión indicar # Operación :",null,null,null,null,null,null,null,null,null,null,null,"BANCO PICHINCHA",212843,null,null,null,"Exclusión"]
[null,"Endosatario",null,"Valor Endosado",null,null,"Bien / Materia de crédito :",null,null,null,null,null,null,null,null,null,null,null,"BCO INTERBANK",252,null,null,null,"Inclusión"]
[null,"Seleccione",null,null,null,null,null,null,null,null,null,null,null,null,null,null,null,null,"CITIBANK DEL PERU S.A.",1808,null,null,null,"Modificación"]
[null,"Ubicación de Riesgo",null,null,null,null,null,null,null,null,null,null,null,null,null,null,null,null,"BANCO SANTANDER PERU S.A.",4643588]
[null,"N° de Leasing",null,null,null,null,null,null,null,null,null,null,null,null,null,null,null,null,"BANCO INTERAMERICANO DE FINANZAS",194802]
[null,null,null,null,null,null,null,null,null,null,null,null,null,null,null,null,null,null,"BANCO GNB PERU S.A.",3337113]
[null,"Tipo de solicitud :","Seleccione",null,null,null,"Para Modificación o Exclusión indicar # Operación :",null,null,null,null,null,null,null,null,null,null,null,"BBVA CONSUMER FINANCE ENTIDAD DE DESARROLLO A LA PEQUEÑA Y MICRO EMPRESA-EDPYME",10584420]
[null,"Endosatario",null,"Valor Endosado",null,null,"Bien / Materia de crédito :",null,null,null,null,null,null,null,null,null,null,null,"CREDISCOTIA  FINANCIERA S.A",109405]
[null,"Seleccione",null,null,null,null,null,null,null,null,null,null,null,null,null,null,null,null,"BANCO DE CREDITO DEL PERU",251]
[null,"Ubicación de Riesgo",null,null,null,null,null,null,null,null,null,null,null,null,null,null,null,null,"BANCO FALABELLA PERU S.A",154676]
[null,"N° de Leasing",null,null,null,null,null,null,null,null,null,null,null,null,null,null,null,null,"EDYFICAR PERU S.A.",191157]
[null,null,null,null,null,null,null,null,null,null,null,null,null,null,null,null,null,null,"BANCO RIPLEY PERU S.A.",131670]
[null,"Tipo de solicitud :","Seleccione",null,null,null,"Para Modificación o Exclusión indicar # Operación :",null,null,null,null,null,null,null,null,null,null,null,"CAJA MUNICIPAL DE AHORRO Y CREDITO DE AREQUIPA S.A. - CAJA AREQUIPA",30792]
[null,"Endosatario",null,"Valor Endosado",null,null,"Bien / Materia de crédito :",null,null,null,null,null,null,null,null,null,null,null,"FINANCIERA TFC S.A",287153]
[null,"Seleccione",null,null,null,null,null,null,null,null,null,null,null,null,null,null,null,null,"COMPARTAMOS FINANCIERA S.A.",2055253]
[null,"Ubicación de Riesgo",null,null,null,null,null,null,null,null,null,null,null,null,null,null,null,null,"CRAC INCASUR S.A.",8491383]
[null,"N° de Leasing",null,null,null,null,null,null,null,null,null,null,null,null,null,null,null,null,"CAJA MUNICIPAL DE AHORRO Y CREDITO CUSCO S.A. - CMAC CUSCO S.A.",111816]
[null,null,null,null,null,null,null,null,null,null,null,null,null,null,null,null,null,null,"BANCO SANTANDER CHILE",11850342]
[null,"Tipo de solicitud :","Seleccione",null,null,null,"Para Modificación o Exclusión indicar # Operación :",null,null,null,null,null,null,null,null,null,null,null,"BANCO SANTANDER LEASING S A",2263576]
[null,"Endosatario",null,"Valor Endosado",null,null,"Bien / Materia de crédito :",null,null,null,null,null,null,null,null,null,null,null,"BANCO INTERAMERICANO DE DESARROLLO",2300994]
[null,"Seleccione",null,null,null,null,null,null,null,null,null,null,null,null,null,null,null,null,"DEUTSCHE BANK PERU S.A.",4684871]
[null,"Ubicación de Riesgo"]
[null,"N° de Leasing"]
[]
[null,"Endoso de Asegurado Adicional a entidad NO Financiera"]
[]
[null,"Asegurado Adicional",null,null,null,null,null,null,null,null,null,null,"Indicar el vínculo entre el asegurado adicional y el asegurado.\nRecuerde para empresas mineras pasará por un flujo de autorización.",null,null,null,null,null,"Endosos"]
[null,"Giro Ocupación"]
[]
[null,"Observación :"]
[null,null,null,null,null,null,null,null,null,null,null,null,null,null,null,null,null,null,"Rehabilitación","recepcionformatos@rimac.com.pe"]
[]
[]
[null,"Endoso de Asegurado Adicional a entidad Financiera"]
[]
[null,"Asegurado Adicional (entidad Financiera)",null,null,null,null,null,null,null,null,null,null,"Si no se trata de un crédito, indicar las labores que realizará el asegurado para la entidad financiera."]
[null,"Bien / Materia del Crédito"]
[]
[null,"Observación :"]
[]
[]
[]
[null,"Rehabilitación de Póliza"]
[]
[null,null,null,null,null,null,null,null,null,null,null,null,"Recuerda que esta solicitud pasará por un flujo de autorización, adjuntar carta de no siniestralidad, para su evaluación."]
[null,"Observación :"]
[]
[]
[]
[]
[null,null,null,null,null,null,null,null,null,null,null,null,null,null,null,null,null,null,{"$f":"IF(COUNTBLANK(S59:S81)<22,\"Endosos Varios\",T82)","v":"Rehabilitación"},{"$f":"S59&S60&S61&S6266&S62&S63&S64&S65&S66&S67&S68&S69&S70&S71&S73&S72&S74&S75&S76&S77&S78&S79&S80","v":"Rehabilitación"},null,null,{"$f":"COUNTIF(T59:T81,\"recepcionformatos@rimac.com.pe\")","v":1},{"$f":"IF(OR(W82=1,W82>1),\"recepcionformatos@rimac.com.pe\",\"emisionrapidarrgg@rimac.com.pe\")","v":"recepcionformatos@rimac.com.pe"}]
[null,"Modificación de Local(es)"]
[]
[null,"Tipo de Solicitud :","Seleccione",null,null,null,"Nota: ","Si se trata de mas de un local, descargar el archivo de esta dirección >>>>>>>",null,null,null,"https://bit.ly/2KzZ7LT"]
[null,null,null,null,null,null,null,null,null,null,null,null,"Recuerda que esta solicitud pasará por un flujo de autorización y se evaluará si se requiere pasar por el área de ingeniería"]
[null,"Ubicación del Local","Tipo de Vía",":",null,"Ejmp.: Jr. Calle, Av., Prolog. Malecón, Ovalo, Psj., Pza., Paseo….."]
[null,null,"Nombre de la Vía",":",null,null,null,null,null,"N°"]
[null,null,"Distrito",":"]
[null,null,"Provincia",":"]
[null,null,"Departamento",":"]
[null,null,"Giro / Ocupación",":"]
[null,"Datos SBS","N° de Pisos",":",null,"Se refiere al Nro. de pisos del edificio completo"]
[null,null,"N° de Sótanos",":",null,"Se refiere al Nro. de Sótanos del edificio completo"]
[null,null,"Año de Construcción",":",null,"Indicar el año original, haya o  no sufrido reconstrucciones."]
[null,null,"T.E.P.",":",null,"Tipo de Estructura Predominante, ver ayuda en >>>>"]
[null,"Materia Asegurada / Valores declarados","Edificio",":"]
[null,null,"Contenido en General",":"]
[null,null,"Existencias",":",null,null,"Moneda",":"]
[null,null,"Maq. Fija",":"]
[null,null,"Maq. Móvil",":"]
[null,null,"Lucro Cesante",":"]
[]
[null,"Dato de Contacto para Inspección de local(es)",null,":",null,null,null,null,null,"Teléfono"]
[]
[null,"Observación :"]
[]
[]
[null,"Declaración de Existencias Tipo \"A\" o \"B\""]
[]
[null,null,"Declaración Tipo",":","Tipo B"]
[null,"Indicar el Valor Declarado Real en el mes correspondiente:",null,null,null,null,null,null,null,null,null,null,null,null,null,null,null,null,null,null,null,null,null,"Seleccione"]
[null,"Mes","Valor Declarado Real",null,"Mes","Valor Declarado Real",null,null,null,null,null,null,null,null,null,null,null,null,null,null,null,null,null,"Tipo A"]
[null,"Enero",null,null,"Julio",null,null,null,null,null,null,null,null,null,null,null,null,null,null,null,null,null,null,"Tipo B"]
[null,"Febrero",null,null,"Agosto"]
[null,"Marzo",null,null,"Septiembre"]
[null,"Abril",null,null,"Octubre"]
[null,"Mayo",null,null,"Noviembre"]
[null,"Junio",null,null,"Diciembre"]
[]
[null,"Moneda"]
[]
[null,"Observación :"]
[]
[]
[]
[null,"Prorrogas de Vigencia"]
[]
[]
[null,"Vigencia de Prorroga","Desde",":"]
[null,null,"Hasta",":",null,null,"N° de Días",":",{"$f":"+E131-E130","v":0},null,null,null,"Prórrogas mayores a 90 días pasarán por un flujo de autorización"]
[]
[null,"Observación :"]
[]
[]
[]
[]
[null,"Cambio de Contratante/ Asegurado/ Responsable de Pago"]
[]
[{"$f":"IF(C140=\"Seleccione\",\"1\",\"2\")","v":"1"},"Modificación","Seleccione"]
[null,null,null,null,null,null,null,null,null,null,null,null,"La modificación y Responsable de Pago no afectan liquidaciones de prima emitidos con anterioridad, si requiere la modificación de la facturación deberá indicarlo específicamente."]
[null,"Nombres y Apellidos o Razón social",null,"Tipo de Dcto",null,"Nro. de Dcto",null,"Correo electrónico",null,"Dirección(Opcional)",null,null,null,null,null,null,null,null,null,null,null,null,null,"Seleccione"]
[null,null,null,"Seleccione",null,null,null,null,null,null,null,null,null,null,null,null,null,null,null,null,null,null,null,"Contratante"]
[null,null,null,null,null,null,null,null,null,null,null,null,null,null,null,null,null,null,null,null,null,null,null,"Asegurado"]
[{"$f":"IF(C145=\"Seleccione\",\"1\",\"2\")","v":"1"},"Modificación","Seleccione",null,null,null,null,null,null,null,null,null,null,null,null,null,null,null,null,null,null,null,null,"Responsable de Pago"]
[]
[null,"Nombres y Apellidos o Razón social",null,"Tipo de Dcto",null,"Nro. de Dcto",null,"Correo electrónico",null,"Dirección(Opcional)"]
[null,null,null,"Seleccione"]
[]
[{"$f":"IF(C150=\"Seleccione\",\"1\",\"2\")","v":"1"},"Modificación","Seleccione"]
[]
[null,"Nombres y Apellidos o Razón social",null,"Tipo de Dcto",null,"Nro. de Dcto",null,"Correo electrónico",null,"Dirección(Opcional)"]
[null,null,null,"Seleccione"]
[]
[]
[null,"Observación :"]
[]
[]
[null,"Inclusiones de Equipos TREC (solo para pólizas TREC)"]
[]
[]
["(*)","Clase de Equipo",null,null,null,null,null,null,"Placa/Rodaje",null,null,null,"Aplicable solo para inclusiones en pólizas individuales  TREC"]
["(*)","Marca",null,null,null,null,null,null,"Marca de Motor"]
["(*)","Modelo",null,null,null,null,null,null,"N° Serie de Motor "]
["(*)","N° de Serie",null,null,null,null,null,null,"Ítem del Asegurado"]
["(*)","N° Motor",null,null,null,null,null,null,"Otras características"]
["(*)","Año de Fabricación ",null,null,null,null,null,"(*)","Valor Nuevo de reposición"]
[]
["(*)","Ubicación del equipo"]
[null,"Indicar la Ubicación al inicio del seguro.",null,null,null,null,null,null,null,null,null,null,"Declaración de equipos TREC"]
[]
[null,"Observación "]
[]
[]
[null,"(*) Datos Obligatorios"]
[]
[null,"Anulación de Póliza"]
[]
[null,"Fecha de Anulación","2022-08-26",null,null,null,null,null,null,null,null,null,"Si se encuentra endosado se enviará carta al banco "]
[]
[null,"Motivo de Anulación y observación ","El asegurado ha cambiado de compañía por mejores condiciones."]
[]
[]
[]
[null,"Reproceso"]
[]
[null,"Indicar el N° de Operación a corregir",null,null,null,null,null,null,null,null,null,null,"Un reproceso es una corrección a una operación mal emitida, si se trata de una modificación a una operación bien emitida se emitirá como un endoso adicional."]
[]
[null,"Describir el error y detallar como debería ser"]
[]
[]
[]
[]
[]
[null,"Ajuste de prima por Burning Cost"]
[]
[null,"Periodo"]
[]
[null,"Solicitamos cobro de Burning Cost según detalle:"]
[]
[]
[]
[]
[]
[null,"Ajuste de prima por Participación de Utilidades"]
[]
[null,"Periodo"]
[]
[null,"Solicitamos cobro de Participación de Utilidades según detalle:"]
[]
[]
[]
[]
[]
[]
[null,"Modificación de Dirección"]
[]
[null,"Dirección Fiscal de Cobranzas"]
[]
[null,"Modificación de Valores Declarados"]
[null,null,"Indicar como quedan los nuevos valores declarados si es necesario adjuntar un archivo"]
[]
[null,"Local Modificado"]
[]
[null,"Materia Asegurada","Nuevo Valor Declarado"]
[null,"Edificio"]
[null,"Contenido en Gral.",null,null,null,null,null,null,null,null,null,null,"Descargue aquí el archivo SBS"]
[null,"Existencias"]
[null,"Maquinaria Fija"]
[null,"Maquinaria Móvil"]
[null,"Lucro Cesante"]
[null,"Otro Indicar"]
[]
[null,"Observación "]
[]
[]
[]
[]
[null,"Modificación de Suma Asegurada y Sub limites"]
[]
[null,"Conceptos",null,"Nuevo Limite Asegurado"]
[null,"Limite Principal",null,0]
[null,"Sub Limites:"]
[null,"Riesgos Políticos",null,0]
[null,"Gastos Extraordinarios",null,0]
[null,"Gastos extras",null,0]
[null,"Cobertura automática",null,0]
[null,"Inclusión automática ",null,0]
[null,"Rotura accidental de avisos luminosos",null,0]
[null,"Transporte incidental",null,0]
[null,"Rotura o rajadura accidental de cristales, vidrios y espejos",null,0]
[null,"Refrigeración",null,0]
[null,"Arrendamiento",null,0]
[null,"Vehículos propios y/o de terceros dentro del local del Asegurado",null,0]
[]
[null,"Modificación de Condiciones Especiales"]
[]
[]
[null,"Describir La modificación o inclusión de Condiciones Especiales",null,null,null,null,null,null,null,null,null,null,"Esta operación será evaluada por suscripción"]
[]
[]
[]
[]
[null,"Modificación de Garantías"]
[]
[]
[null,"Describir La modificación o inclusión de Garantías",null,null,null,null,null,null,null,null,null,null,"Esta operación será evaluada por suscripción"]
[]
[]
[]
[]
[]
[]
[null,"Modificación de Corredor"]
[]
[null,null,null,null,null,null,null,null,null,null,null,null,"No olvidar Adjuntar Carta Nombramiento"]
[null,"Nuevo Corredor"]
[]
[]
[null,"Modificación  / Inclusión de Coaseguro"]
[]
[]
[null,"Coaseguradores",null,null,"% Participación "]
[null,"Rimac Seguro  (Líder)",null,":",null,"%",null,null,null,null,null,null,null,null,null,null,null,null,null,null,null,null,38,"LA POSITIVA SEGUROS Y REASEGUROS"]
[null,null,null,":",null,"%",null,null,null,null,null,null,null,null,null,null,null,null,null,null,null,null,231,"PACIFICO COMPAÑIA DE SEGUROS Y REASEGUROS"]
[null,null,null,":",null,"%",null,null,null,null,null,null,null,null,null,null,null,null,null,null,null,null,112338,"MAPFRE PERU COMPAÑIA DE SEGUROS Y REASEGUROS S.A."]
[null,null,null,":",null,"%",null,null,null,null,null,null,null,null,null,null,null,null,null,null,null,null,210506,"CHUBB PERU S.A. COMPAÑIA DE SEGUROS Y REASEGUROS"]
[null,null,null,":",null,"%",null,null,null,null,null,null,null,null,null,null,null,null,null,null,null,null,244555,"INTERSEGURO COMPAÑIA DE SEGUROS S.A."]
[null,null,null,null,null,null,null,null,null,null,null,null,null,null,null,null,null,null,null,null,null,null,403373,"SEGUROS SURA"]
[]
[null,"Modificación de Claúsulas"]
[]
[]
[null,"Describir La modificación de claúsulas"]
[]
[]
[]
[]
[]
[null,"Modificación de Deducible"]
[]
[]
[null,"Describir La modificación de deducible"]
[]
[]
[]
[]
[]
[null,"Modificación de N° de Trabajadores 3D"]
[]
[]
[null,"Dice",null,null,"Debe Decir"]
[null,"Categoría","N° de Trabajadores",null,"Categoría","N° de Trabajadores"]
[null,"\"A\"",null,null,"\"A\""]
[null,"\"B\"",null,null,"\"B\""]
[null,"\"C\"",null,null,"\"C\""]
[null,"VIGILANTES",null,null,"VIGILANTES"]

{"sheet":"SOAT","index":6,"n_rows":60,"n_cols":20,"rows_kept":60,"cut":false,"hidden":true,"merged":[[45,9,45,10],[59,12,61,14],[54,12,54,13],[55,12,57,14],[56,2,56,5],[56,9,58,10],[48,9,48,10],[43,12,43,13],[52,1,52,10],[54,2,54,5],[54,9,54,10],[43,1,43,10],[47,1,47,10],[49,1,49,2],[49,3,49,4],[49,5,49,6],[49,7,49,8],[49,9,49,10],[45,1,45,2],[45,3,45,4],[45,5,45,6],[45,7,45,8],[44,12,49,14],[32,1,32,10],[36,4,36,5],[29,12,30,14],[30,1,30,2],[30,3,30,4],[30,5,30,6],[30,7,30,8],[30,9,30,10],[36,6,40,7],[36,9,40,10],[44,1,44,2],[44,3,44,4],[44,5,44,6],[44,7,44,8],[44,9,44,10],[11,12,11,13],[8,11,8,13],[10,11,10,13],[27,1,27,10],[29,1,29,2],[29,3,29,4],[29,5,29,6],[29,7,29,8],[29,9,29,10],[14,1,14,2],[14,3,14,4],[14,5,14,6],[14,7,14,8],[14,9,14,10],[13,9,13,10],[12,12,14,14],[1,6,1,7],[2,6,2,7],[5,1,6,5],[8,2,8,4],[58,2,58,5],[13,1,13,2],[13,3,13,4],[13,5,13,6],[24,2,24,3],[17,3,17,8],[12,1,12,10],[13,7,13,8],[48,1,48,2],[48,3,48,4],[48,5,48,6],[48,7,48,8],[18,11,23,12],[16,1,16,10],[19,2,19,3],[20,2,20,3],[21,2,21,3],[22,2,22,3],[23,2,23,3]]}
[]
[null,null,null,null,null,null,null,null,{"$f":"+T20","v":"/Endoso /2003 - / Corredor: "},null,null,null,"**"]
[null,null,null,null,null,null,null,null,{"$f":"+T21","v":"recepcionformatos@rimac.com.pe"}]
[null,null,null,null,null,null,null,null,null," ",null,null,{"$f":"+I3&IF(I4=\"\",\"\",\";\"&I4)","v":"recepcionformatos@rimac.com.pe"}]
["Version 5.20"]
[null," Solicitud de Endosos"]
[null,null,null,null,null,null,null,null,null,null,null,null,null,null,"*"]
[]
[null,"Corredor:",null,null,null,null,"RUC de Corredor ",":",null,null,{"$f":"IF(A35=\"x\",\"Tipo de Emisión : \",\"\")","v":""},"Seleccione"]
[null,null,null,null,"Nro Producto",null,"Nro de Póliza",null,"Nro de Certificado",null,null,null,null,null,null,null,null,null,null,"Endoso"]
[null,"Producto :","SOAT","-",2003,"-",null,"-",null,null,"Tipo de SOAT : ","Seleccione"]
[]
[null,"Contratante"]
[null,"Nombres y Apellidos o Razon social",null,"Tipo de Dcto",null,"Nro de Dcto",null,"Correo Electrónico (Obligatorio)",null,"Dirección",null,"Teléfono"]
[null,null,null,"Seleccione"]
[]
[null,"Modificación de datos"]
[null,null,null,"Complete los campos que desee modificar"]
[null,null,null,null,null,null,null,null,null,null,null,"Si lo solicitado altera la prima  pasará por un flujo de autorización"]
[null,"Tipo:",null,null,null,null,null,"Motor:",null,null,null,null,null,null,null,null,null,null,null,{"$f":"+B15&\"/\"&T10&\" /\"&\"2003 -\"&G11&IF(I11=\"\",\"\",\" - cert \")&I11&\" / Corredor: \"&C9","v":"/Endoso /2003 - / Corredor: "}]
[null,"Clase:",null,null,null,null,null,"Serie:",null,null,null,null,null,null,null,null,null,null,null,"recepcionformatos@rimac.com.pe"]
[null,"Marca:",null,null,null,null,null,"Año de fabricación:"]
[null,"Modelo:",null,null,null,null,null,"Nro de Ocupantes :"]
[null,"Placa:",null,null,null,null,null,"Uso :"]
[null,"Número de especie valorada:"]
[]
[]
[null,"Actualización de datos del cliente"]
[null,null,null,null,"Complete los campos que desee modificar"]
[null,"Nombres y Apellidos o Razon social",null,"Tipo de Dcto",null,"Nro de Dcto",null,"Correo electronico",null,"Dirección(Opcional)",null,null,"Para esta operación copiar al correo: verificaciondedatos@rimac.com.pe"]
[null,null,null,"Seleccione"]
[]
[null,"Rehacer póliza"]
[]
[null,"Escriba  una \"X\" en el recuadro del campo por el cual desea rehacer la póliza, si no encuentra el campo deseado gestionarlo como endoso"]
[]
[null,null,"Cambio de Vigencia :",null,"Dice :",null,null,null,"Debe decir :"]
[]
[null,null,"Actualización de datos en Liquidaciones :"]
[]
[null,null,"Contratante/Asegurado/Responsable de Pago :"]
[]
[null,"Complete los datos del rol que desee modificar:"]
[null,"Contratante/Asegurado",null,null,null,null,null,null,null,null,null,null,"NOTA"]
[null,"Nombres y Apellidos o Razon social",null,"Tipo de Dcto",null,"Nro de Dcto",null,"Correo electronico",null,"Dirección(Opcional)",null,null,"Tenga en cuenta que si solo completa un rol no se realizará la modificación de los otros roles que no se haya completado."]
[null,null,null,"Seleccione"]
[]
[null,"Responsable de Pago"]
[null,"Nombres y Apellidos o Razon social",null,"Tipo de Dcto",null,"Nro de Dcto",null,"Correo electronico",null,"Dirección(Opcional)"]
[null,null,null,"Seleccione"]
[]
[]
[null,{"$f":"IF(A55=\"Anulación\",\"Anulación\",\"Exclusión\")","v":"Anulación"}]
[]
["Anulación","Tipo de solicitud",{"$f":"+A55","v":"Anulación"},null,null,null,null,null,{"$f":"IF(C55=\"Anulación\",\"Fecha de Anulación :\",\"Fecha de exclusión : \")","v":"Fecha de Anulación :"},null,null,null,"NOTA"]
[null,null,null,null,null,null,null,null,null,null,null,null,{"$f":"IF(C55=\"Anulación\",\"\nRecuerda que pasará por un flujo de aprobación si la fecha de anulación es mayor a los 15 días del inicio de vigencia de la póliza\n\",\"Para las exclusiones pasará por un flujo de aprobado\")","v":"\nRecuerda que pasará por un flujo de aprobación si la fecha de anulación es mayor a los 15 días del inicio de vigencia de la póliza\n"}]
[null,"Motivo de anulación:","Seleccione",null,null,null,null,null,"Descripción",{"$f":"VLOOKUP(C57,reglas!C76:D82,2,0)","v":" "}]
[]
[null,{"$f":"IF(A55=\"Anulación\",\"Forma de Anulación\",\"Forma de Exclusión\")","v":"Forma de Anulación"},"Seleccione"]
[null,{"$f":"IF(C59=\"Con devolución\",\"Si es devolución total colocar en fecha de anulación igual al inicio de vigencia de la póliza/certificado\",\"\")","v":""},null,null,null,null,null,null,null,null,null,null,"Si requiere la devolución total de la prima colocar fecha de anulación igual al inicio de vigencia de la póliza"]

{"sheet":"Una_solicitud SOAT","index":7,"n_rows":96,"n_cols":15,"rows_kept":96,"cut":false,"hidden":true,"merged":[[54,1,54,2],[54,3,54,4],[45,1,45,2],[45,3,45,4],[46,1,46,2],[46,3,46,4],[21,2,21,3],[21,6,21,7],[19,2,19,3],[19,6,19,7],[53,1,53,2],[53,3,53,4],[11,13,16,14],[15,1,15,3],[15,6,15,7],[15,10,15,11],[16,1,16,3],[16,6,16,7],[14,6,14,7],[11,9,12,11],[11,1,12,3],[11,5,12,7],[3,6,3,7],[3,10,3,11],[5,6,5,7],[5,10,5,11],[3,2,3,3],[5,2,5,3],[9,1,10,1],[9,5,10,5],[9,9,10,9],[23,6,23,7],[25,6,28,7],[22,9,25,11],[19,10,19,11],[21,10,21,11],[22,6,22,7],[17,10,17,11],[18,2,18,3],[18,6,18,7],[20,2,20,3],[20,6,20,7],[17,2,17,3],[17,6,17,7]]}
[]
[null,null,null,null,null,null,null,null,null,null,null,null,"*"]
[]
[null,"CORREDOR:",null,null,null,"RUC CORREDOR :",null,null,null,"PRODUCTO","SOAT",null,null,null,{"$f":"C20&\" /  \"&C6&\" / Corredor : \" &C4 &\"  /  \"& IF(K6=\"\",\"2003\",\"2003- \"&K6)","v":" /  Inclusión Individual / Corredor :   /  2003"}]
[]
[null,"TIPO DE EMISIÓN","Inclusión Individual",null,null,"TIPO DE SOAT","Seleccione",null,null,{"$f":"IF(C6=\"Renovación TPI/TPU\",\"PÓLIZA ANTERIOR\",\"PÓLIZA\")","v":"PÓLIZA"}]
[null,null,"Inicio","Fin",null,null,null,null,null,{"$f":"IF(J6=\"PÓLIZA ANTERIOR\",\"Solo considerar poliza de última vigencia\",\"\")","v":""},null,null,null,null,"*"]
[null,"VIGENCIA",null,null,null,null,null,null,null,null,null,null,"ASUNTO :",{"$f":"+ASUNTO8","v":" /  Inclusión Individual / Corredor :   /  2003"}]
[]
[null,"Paso 1",null,null,null,{"$f":"IF(C6=\"Revolving\",\"Paso 1\",\"Paso 2\")","v":"Paso 2"},null,null,null,"Paso 3",null,null,"CORREO :","recepcionformatos@hybrid.rimac.com.pe"]
[]
[null,"Cliente",null,null,null,"Datos del Vehículo",null,null,null,"Forma de Pago"]
[]
[]
[null,null,null,null,null,"Clase:"]
[null,"Contratante / Asegurado/ Responsable de Pago",null,null,null,"Tipo: ",null,null,null,"Indique :","Seleccione"]
[null,"Cliente/Contratante",null,null,null,"Marca:"]
[null,"Tipo de dcto:","Seleccione",null,null,"Modelo:",null,null,null,{"$f":"IF(K16=\"Contado\",\"\",\"Nro de Cuotas :\")","v":"Nro de Cuotas :"}]
[null,"Nro de dcto:",null,null,null,"Placa:"]
[null,"Nombres y apellidos\no Razón social :",null,null,null,"Motor:",null,null,null,"Prima ( opcional) :"]
[null,"E-mail :",null,null,null,"Serie:"]
[null,"Dirección :",null,null,null,"Año de fabricación:",null,null,null,"Comisión ( opcional) :"]
[null,null,null,null,null,"Nro de Ocupantes :",null,null,null,"Para las operaciones de Nueva póliza TPU – TPI, y Renovación TPI/TPU deberá contener VB de UN, cobranzas y adjuntar voucher de depósito / VB de cobranza por pago diferido mayor a 6 cuotas"]
[null,null,null,null,null,"Uso : "]
[]
[null,null,null,null,null,"Ruta:"]
[]
[]
[]
[]
[]
[null,null,null,null,null,null,null,null,null,null,null,null,null,null,"Estimados Señores, \nSe adjunta solicitud \nSaludos, "]
[]
[]
[]
[]
[]
[]
[]
[]
[]
[]
[]
[]
[]
[null,"Nombres y Apellidos o Razon social",null,"Tipo de Dcto",null,null,null,null,null,{"$f":"IF(OR(C35=\"Exclusión\",C35=\"Modificación\"),\"Nro Certificado\",\"Inicio\")","v":"Inicio"},{"$f":"IF(C35=\"Exclusión\",\"Fin de Vigencia\",IF(C35=\"Modificación\",\"\",\"Fin\"))","v":"Fin"}]
[]
[]
[]
[]
[]
[]
[]
[]
[]
[]
[]
[]
[]
[]
[]
[]
[]
[]
[]
[]
[]
[]
[]
[]
[]
[]
[]
[]
[]
[]
[]
[]
[]
[]
[]
[]
[]
[]
[]
[]
[]
[]
[]
[]
[]
[]
[]
[]
[]
[null,null,"anulaciómn"]

{"sheet":"AMI","index":8,"n_rows":176,"n_cols":21,"rows_kept":176,"cut":false,"hidden":true,"merged":[[1,6,1,7],[2,6,2,7],[5,1,6,5],[8,2,8,4],[11,12,11,13],[12,1,12,10],[12,12,14,14],[13,1,13,2],[13,3,13,4],[13,5,13,6],[9,11,10,11],[16,1,16,16],[19,3,19,9],[21,3,21,15],[22,3,22,15],[23,1,25,1],[23,3,25,15],[13,7,13,8],[13,9,13,10],[14,1,14,2],[14,3,14,4],[14,5,14,6],[14,7,14,8],[14,9,14,10],[42,1,42,16],[45,3,45,8],[47,3,47,15],[49,3,49,15],[50,3,50,15],[52,1,54,1],[52,3,54,15],[28,1,28,16],[31,3,31,15],[32,3,32,15],[35,3,35,15],[37,1,39,1],[37,3,39,15],[62,1,62,3],[62,4,62,7],[62,8,62,9],[62,10,62,12],[62,13,62,15],[64,3,64,15],[57,1,57,16],[60,1,60,15],[61,1,61,3],[61,4,61,7],[61,8,61,9],[61,10,61,12],[61,13,61,15],[79,3,79,15],[81,1,83,1],[81,3,83,15],[86,1,86,16],[89,3,89,9],[90,3,90,9],[66,1,68,1],[66,3,68,15],[71,1,71,16],[74,3,74,15],[75,3,75,15],[78,3,78,15],[99,1,99,3],[99,4,99,7],[99,8,99,9],[99,10,99,12],[99,13,99,15],[101,1,103,1],[101,3,103,15],[91,3,91,9],[92,3,92,9],[94,3,94,15],[95,3,95,15],[97,1,97,15],[98,1,98,3],[98,4,98,7],[98,8,98,9],[98,10,98,12],[98,13,98,15],[106,1,106,16],[109,3,109,15],[111,3,111,15],[112,3,112,15],[114,1,114,15],[115,1,115,3],[115,4,115,7],[115,8,115,9],[115,10,115,12],[115,13,115,15],[123,1,123,16],[126,3,126,15],[128,3,128,15],[130,1,132,1],[130,3,132,15],[135,1,135,16],[116,1,116,3],[116,4,116,7],[116,8,116,9],[116,10,116,12],[116,13,116,15],[118,1,120,1],[118,3,120,15],[153,1,155,1],[153,3,155,15],[158,1,158,16],[161,1,163,1],[161,3,163,15],[138,3,138,9],[140,3,140,15],[142,1,144,1],[142,3,144,15],[147,1,147,16],[150,3,150,8],[150,11,150,15]]}
[]
[null,null,null,null,null,null,"ASUNTO :",null,{"$f":"+ASUNTOS","v":"/Inclusión / Póliza : 4049 -  / Corredor: "},null,null,null,"*"]
[null,null,null,null,null,null,"CORREO :",null,{"$f":"+U21","v":"recepcion@rimac.com.pe"}]
[]
["Version 5.20"]
[null," Solicitud de Endosos"]
[]
[]
[null,"Corredor:",null,null,null,null,"Fecha para endoso ",":",null,null,null,"Nota"]
[null,null,null,null,"Nro Producto",null,null,null,null,null,null,"Colocar la fecha en la que se debe realizar el endoso solicitado, caso contrario se tomara fecha del correo.",null,null,null,null,null,null,null,null,{"$f":"+S61","v":"Inclusión"}]
[null,"Producto :"," SALUD PREFERENCIAL FFVV","-",{"$f":"IF(C11=\"Seleccione\",\"Ingrese \",VLOOKUP(C11,reglas!G102:H121,2,0))","v":4049},null,"Nro de Póliza",":"]
[]
[null,"Contratante"]
[null,"Nombres y Apellidos o Razon social",null,"Tipo de Dcto",null,"Nro de Dcto",null,"Correo Electrónico (Obligatorio)",null,"Dirección",null,"Teléfono"]
[null,null,null,"Seleccione"]
[]
[null,"ANULACIÓN"]
[]
[]
[null,"Motivo de Anulación :",null,"Seleccione",null,null,null,null,null,null,null,null,null,null,null,null,null,null,null,null,{"$f":"B15&\"/\"&U10&\" / Póliza : \"&E11&\" - \"&I11&\" / Corredor: \"&C9","v":"/Inclusión / Póliza : 4049 -  / Corredor: "}]
[null,null,null,null,null,null,null,null,null,null,null,null,null,null,null,null,null,null,null,null,{"$f":"+T61","v":"recepcion@rimac.com.pe"}]
[null,"IMPORTANTE",null,"Si se requiere anulación con fecha a futuro el cliente deberá pagar por todo el tiempo coberturado hasta la fecha solicitante."]
[]
[null,"OBSERVACIÓN"]
[]
[]
[]
[]
[null,"CAMBIO DE AGENCIAMIENTO"]
[]
[]
[null,"OBLIGATORIO",null,"Carta de nombramiento según modelo SBS"]
[null,null,null,"DNI vigente de contratante"]
[]
[null,"IMPORTANTE",null,"Carta de nombramiento debe tener firma manuscrita no superpuesta / Contingencia por pandemia: correo de cliente confirmando agenciamiento"]
[null,null,null,"Para persona jurídica la carta debe ser membretada."]
[]
[null,"OBSERVACIÓN"]
[]
[]
[]
[]
[null,"MIGRACIÓN (cambio de producto)"]
[]
[]
[null,"Nuevo producto :",null,"Seleccione"]
[]
[null,"OBLIGATORIO",null,"DPS editable o tradicional"]
[]
[null,"IMPORTANTE",null,"La DPS editable debe contar con firma biométrica y la DPS tradicional debe contar con firma manuscrita"]
[null,null,null,"No se aceptarán DPS con firmas superpuestas"]
[]
[null,"OBSERVACIÓN"]
[]
[]
[]
[]
[null,"CAMBIO DE CONTRATANTE"]
[]
[]
[null,"Datos de nuevo contratante",null,null,null,null,null,null,null,null,null,null,null,null,null,null,null,null,"Inclusión","recepcion@rimac.com.pe"]
[null,"Nombre o Razón Social",null,null,"Tipo de Documento",null,null,null,"Nro. de Documento",null,"Correo electrónico",null,null,"Dirección"]
[]
[]
[null,"IMPORTANTE",null,"El cliente deberá pagar por todo el tiempo coberturado hasta la fecha solicitada."]
[]
[null,"OBSERVACIÓN"]
[]
[]
[]
[]
[null,"INCLUSIÓN"]
[]
[]
[null,"OBLIGATORIO",null,"DPS editable o tradicional"]
[null,null,null,"Recién nacido con menos de 60 días debe enviar Acta de nacimiento o Certificado de Nacido Vivo"]
[null,null,null,"Recién nacido con más de 60 días debe enviar DPS editable o tradicional"]
[]
[null,"IMPORTANTE",null,"La DPS editable debe contar con firma biométrica y la DPS tradicional debe contar con firma manuscrita"]
[null,null,null,"No se aceptarán DPS con firmas superpuestas"]
[]
[null,"OBSERVACIÓN"]
[]
[]
[]
[]
[null,"EXCLUSIÓN"]
[]
[]
[null,"Nombre de asegurado a excluir:"]
[]
[]
[]
[]
[null,"IMPORTANTE",null,"El cliente deberá pagar por todo el tiempo coberturado hasta la fecha solicitante."]
[null,null,null,"Para exclusión de titular y en caso de que titular y contratante sean la misma persona debe ingresar a continuación los datos del nuevo contratante. "]
[]
[null,"Datos de nuevo contratante"]
[null,"Nombre o Razón Social",null,null,"Tipo de Documento",null,null,null,"Nro. de Documento",null,"Correo electrónico",null,null,"Dirección"]
[]
[]
[null,"OBSERVACIÓN"]
[]
[]
[]
[]
[null,"LIBERACIÓN DE PRIMA"]
[]
[]
[null,"OBLIGATORIO",null,"Acta de fallecimiento de titular / Certificado de defunción de titular"]
[]
[null,"IMPORTANTE",null,"El cliente deberá estar al día en los pagos hasta la fecha de fallecimiento de titular"]
[null,null,null,"En caso de que titular y contratante sean la misma persona debe ingresar a continuación los datos del nuevo contratante. "]
[]
[null,"Datos de nuevo contratante"]
[null,"Nombre o Razón Social",null,null,"Tipo de Documento",null,null,null,"Nro. de Documento",null,"Correo electrónico",null,null,"Dirección"]
[]
[]
[null,"OBSERVACIÓN"]
[]
[]
[]
[]
[null,"REHABILITACIÓN"]
[]
[]
[null,"OBLIGATORIO",null,"Debe adjuntar VB del ejecutivo comercial"]
[]
[null,"IMPORTANTE",null,"En caso póliza haya sido anulada por morosidad debe solicitar la rehabilitación con el área de cobranzas al correo: requerimientoscobranzas@rimac.com.pe"]
[]
[null,"OBSERVACIÓN"]
[]
[]
[]
[]
[null,"DESCUENTO"]
[]
[]
[null,"Motivo de Descuento :",null,"Seleccione"]
[]
[null,"OBLIGATORIO",null,"Para descuento contra comisión debe adjuntar VB de gerente corredor y de ejecutivo comercial"]
[]
[null,"OBSERVACIÓN"]
[]
[]
[]
[]
[null,"CAMBIO DE PLAN (sobre el mismo producto)"]
[]
[]
[null,"Producto :",null,"Seleccione",null,null,null,null,null,null,"Nuevo plan :    "]
[null,null,null,null,null,null,null,null,null,null,null,"Detallar aquí el plan a migrar"]
[]
[null,"OBSERVACIÓN"]
[]
[]
[]
[]
[null,"RENOVACIÓN AMI"]
[]
[]
[null,"OBSERVACIÓN"]
[]
[]
[]
[]
[]
[]
[]
[]
[]
[]
[]
[]
[]
[null,null,null,null,null,null,null,null,null,null,null,null,null,null,null,null,null,null,null,null,"Estimados Señores, \nSe adjunta solicitud \nSaludos, \n"]

{"sheet":"Una_solicitud","index":9,"n_rows":95,"n_cols":15,"rows_kept":95,"cut":false,"hidden":true,"merged":[[10,13,15,14],[44,1,44,2],[44,3,44,4],[44,5,44,6],[44,7,44,8],[41,6,41,7],[35,5,38,7],[45,1,45,2],[45,3,45,4],[45,5,45,6],[45,7,45,8],[52,1,52,2],[52,3,52,4],[52,5,52,6],[52,7,52,8],[53,1,53,2],[53,3,53,4],[53,5,53,6],[53,7,53,8],[18,10,18,11],[26,9,27,9],[23,6,23,7],[24,1,24,3],[30,1,30,3],[20,2,20,3],[23,1,23,3],[19,10,20,11],[21,9,22,9],[21,10,22,11],[24,10,24,11],[24,6,24,7],[3,6,3,7],[26,10,31,11],[36,2,36,3],[28,2,28,3],[19,9,20,9],[32,2,32,3],[33,2,33,3],[34,2,34,3],[35,2,35,3],[26,2,26,3],[26,6,26,7],[19,2,19,3],[19,6,19,7],[22,6,22,7],[17,2,17,3],[21,1,22,3],[3,2,3,4],[8,9,9,10],[3,10,3,11],[17,6,17,7],[10,1,11,3],[10,5,11,7],[10,9,11,11],[14,1,14,3],[14,6,14,7],[14,10,14,11],[5,10,5,11],[15,1,15,3],[5,6,5,7],[16,2,16,3],[16,6,16,7],[16,10,16,11],[8,1,9,2],[8,5,9,6],[18,2,18,3],[18,6,18,7],[40,6,40,7],[30,5,30,7],[32,6,32,7],[39,6,39,7],[27,2,27,3],[27,6,27,7],[29,2,29,3],[34,5,34,7],[31,1,31,3],[25,2,25,3]]}
[]
[]
[]
[null,"CORREDOR:",null,null,null,"PRODUCTO :","Daño Propio",null,null,"TIPO DE SOLICITUD:","Nueva póliza",null,null,{"$f":"IF(G4=\"Brevete\",\"1\",IF(OR(G4=\"Traslados\",G4=\"Exhibición de Placas\"),\"2\",\"3\"))","v":"3"},{"$f":"C19&\" /  \"&K4&\" / Corredor : \" &C4 & IF(D6=\"\",\"\",C6& \" - \"&D6)","v":" /  Nueva póliza / Corredor : "}]
[]
[null,"PÓLIZA:",{"$f":"VLOOKUP(G4,reglas!C32:D37,2,0)","v":2101},null,null,"TIPO PLAN :","Seleccione",null,null,"ESPECIFÍQUE :"]
[null,null,"Inicio","Fin",null,null,null,null,null,null,null,null,null,null,"*"]
[null,"VIGENCIA",null,null,null,null,null,null,null,null,null,null,"ASUNTO :",{"$f":"+ASUNTO8","v":" /  Nueva póliza / Corredor : "}]
[null,null,null,null,null,null,null,null,null,null,null,null,"CORREO :","recepcion@rimac.com.pe"]
[]
[null,"Cliente",null,null,null,"Datos del Vehículo",null,null,null,"Forma de Pago"]
[]
[]
[]
[null,"Contratante / Asegurado/ Responsable de Pago",null,null,null,"Marca:",null,null,null,"Indique :"]
[null,"Cliente/Contratante"]
[null,"Tipo de dcto:","Seleccione",null,null,"Modelo:",null,null,null,"Nro de Cuotas :",null,null,null,{"$f":"VLOOKUP(K4,reglas!$F$179:$G$180,2,0)","v":"recepcion@rimac.com.pe"}]
[null,"Nro de dcto:",null,null,null,"Placa:"]
[null,"Nombres y apellidos\no Razón social :",null,null,null,"Motor:",null,null,null,"Prima Neta :"]
[null,"E-mail :",null,null,null,"Serie:"]
[null,"Dirección :"]
[null,"*Si el cliente difiere del contratante/asegurado/responsable de pago espeficique:",null,null,null,null,null,null,null,"Descuento según nota técnica :","Si"]
[null,null,null,null,null,"Suma Asegurada:"]
[null,"Espeficicar :",null,null,null,"Año de fabricación:"]
[null,"Seleccione",null,null,null,"Nro de Ocupantes :",null,null,null,"% de descuento"]
[null,"Tipo de dcto:","Seleccione"]
[null,"Nro de dcto:",null,null,null,"Uso:",null,null,null,{"$f":"IF(G4=\"Responsabilidad Civil - TPU\",\"Vïas : \",\"Observación : \")","v":"Observación : "}]
[null,"Nombres y apellidos\no Razón social :",null,null,null,"Vehiculo a Gas :","Seleccione"]
[null,"E-mail :"]
[null,"Dirección :"]
[null,"Espeficicar :",null,null,null,"Endostario",null,null,null,null,null,null,null,null,"Estimados Señores, \nSe adjunta solicitud \nSaludos, "]
[null,"Seleccione"]
[null,"Tipo de dcto:","Seleccione",null,null,"Indique endosatario:"]
[null,"Nro de dcto:"]
[null,"Nombres y apellidos\no Razón social :",null,null,null,"Inspección"]
[null,"E-mail :",null,null,null,"Adjuntar comprobante de pago del vehiculo o póliza de otra compañía con continuidad de vigencia.\nLas unidades que no son 0 km,  no provienen de otra compañía o no esten endosadas al banco, requieren inspección ."]
[null,"Dirección :"]
[]
[]
[null,null,null,null,null,"Nombre del Contacto :"]
[null,null,null,null,null,"Teléfono :"]
[null,null,null,null,null,"Correo Electrónico :"]
[]
[]
[null,"Nombres y Apellidos o Razon social",null,"Tipo de Dcto",null,"Nro de Dcto",null,"Licencia",null,{"$f":"IF(OR(C34=\"Exclusión\",C34=\"Modificación\"),\"Nro Certificado\",\"Inicio\")","v":"Inicio"},{"$f":"IF(C34=\"Exclusión\",\"Fin de Vigencia\",IF(C34=\"Modificación\",\"\",\"Fin\"))","v":"Fin"}]
[]
[]
[]
[]
[]
[]
[]
[]
[]
[]
[]
[]
[]
[]
[]
[]
[]
[]
[]
[]
[]
[]
[]
[]
[]
[]
[]
[]
[]
[]
[]
[]
[]
[]
[]
[]
[]
[]
[]
[]
[]
[]
[]
[]
[]
[]
[]
[]
[]
[null,null,"anulaciómn"]

{"sheet":"reglas","index":10,"n_rows":193,"n_cols":14,"rows_kept":193,"cut":false,"hidden":true,"merged":[]}
["Producto"]
[]
[null,"Seleccione"," ",null,"Seleccione",null,"Seleccione","Seleccione","Seleccione"]
[1,"Multirriesgo",1301,null,"D.N.I.",null,"Modular","Modular","Modular"]
[2,"3D",1505,null,"R.U.C.",null,"Corporativa","Corporativa","Corporativa"]
[{"$f":"+A5+1","v":3},"Deshonestidad",1501,null,"C.E.",null,"Colectiva",{"$f":"IF(Una_solicitud!K4=\"Nueva póliza\",\"\",\"Colectiva\")","v":""},{"$f":"IF(Emision_varias!G9=\"Póliza Nueva\",\"\",\"Colectiva\")","v":""}]
[{"$f":"+A6+1","v":4},"Robo",1101,null,"PASAPORTE"]
[5,"Responsabilidad Civil",1201]
[6,"Domiciliario",1402,null,"Seleccione",null,"Seleccione"]
[7,"Seguro Bancario",1601,null,"Desde inicio de vigencia",null,"Si"]
[8,"Transportes Anual",3003,null,"Otros :",null,"No"]
[9,"Transportes Flotante",3001]
[10,"Transporte Individual",3002,null,"Seleccione"]
[11,"Transporte Individual",3002,null,"Cambio de Compañía",null,"Seleccione"]
[12,"TREC",3301,null,"No puede pagar la póliza",null,"Exclusión"]
[13,"CAR - Construcción",3311,null,"No desea póliza",null,"Inclusión"]
[14,"EAR - Montaje",3321,null,"Otro( Especifique) :",null,"Modificación"]
[15,"Equip. Electrónico",3341,null,null,null,null,null,null,null,null,897,null,{"$f":"L18/8","v":112.125}]
[16,"Rotura de Maquinaria",3331,null,"Seleccione",null,"Seleccione"]
[17,"OCT -Obras Civiles Terminadas",3351,null,"Asegurado",null,"Anulación"]
[18,"Negocio Seguro",1338,null,"Responsable de Pago",null,"Exclusión"]
[null,null,null,null,"Contratante"]
[]
[null,null,null,null,"Seleccione",null,"Seleccione"]
[null,"Seleccione",null,null,"Cláusula",null,"Póliza"]
[null,"Incluir",null,null,"Cobertura",null,"Certificado"]
[null,"Excluir",null,null,"Deducible"]
[null,"Modificar",null,null,"Condición especial (Especifíque)"]
[null,null,null,null,"Varios (especificar en observación)",null,"Seleccione"]
[null,null,null,null,null,null,"Nueva póliza"]
[null,null,null,null,null,null,"Inclusión"]
[null,null,"Seleccione"," ","  "]
[null,null,"Daño Propio",2101,"2101 -",null,"Seleccione"]
[null,"nueva poliza","Brevete",2010,"2010 -",null,"Póliza Nueva"]
[null,"inclusion ","Responsabilidad Civil - TPU",2016,"2016 -",null,"Inclusión"]
[null,"exclusion","Traslados",2014,"2014 -",null,"Nueva póliza TPU - TPI"]
[null,null,"Exhibición de Placas",2015,"2015 -",null,"Inclusión TPU - TPI"]
[null,null,null,null,null,null,"Renovación TPI/TPU"]
[]
[null,null,"Seleccione"," "]
[null,null,"Daño Propio",2101]
[null,null,"Responsabilidad Civil - TPU",2016]
[]
[]
[]
[]
[null,null,"Seleccione"," "]
[null,null,"Atención","Mal servicio de Rimac, proveedores o experiencia"]
[null,null,"Motivo económico","Problemas económicos o cese laboral"]
[null,null,"Precio","No está de acuerdo con el precio."]
[null,null,"Producto","No le satisface el producto o los beneficios"]
[null,null,"Tiene Eps","Anula porque tiene EPS con otra compañía o con Rimac"]
[null,null,"Venta","Insatisfacción en el proceso de la venta, no reconoce la compra"]
[null,null,"Venta del bien asegurado","Venderá o está en proceso de vender el bien"]
[null,null,"Seguro con nuevas condiciones","Anula porque emitirá nueva póliza con otras condiciones"]
[null,null,"Otros","No brinda detalle, entre otros"]
[]
[]
[]
[]
[]
[]
[]
[]
[null,"Seleccione"]
[null,"Físico"]
[null,"Digital -Correo electrónico"]
[null,"Número de especie valorada"]
[]
[]
[]
[]
[]
[]
[]
[null,null,"Seleccione"," ",null,"Seleccione"]
[null,null,"Baja o rechazo de la unidad ante el MTC o ATU","solo aplica para exclusión",null,"Digital"]
[null,null,"Venta de la unidad","solo aplica para exclusión",null,"Físico"]
[null,null," Unidad inoperativa (pérdida total)","solo aplica para exclusión"]
[null,null,"Cambio de Uso","solo aplica para exclusión",null,"Seleccione"]
[null,null,"Otros","solo aplica para exclusión",null,"Nueva póliza individual"]
[null,null,null,null,null,"Inclusión Individual"]
[null,null,null,null,null,"Nueva póliza TPU - TPI"]
[null,null,null,null,null,"Inclusión TPU - TPI"]
[null,null,null,null,null,"Renovación TPI/TPU"]
[]
[]
[]
[null,null,null,null,null,"Seleccione"]
[null,null,null,null,null,"Contado"]
[null,null,null,null,null,"Cupones"]
[]
[]
[null,null,null,null,null,"Seleccione"]
[null,null,null,null,null,"Con devolución"]
[null,null,null,null,null,"Sin devolución"]
[]
[]
[]
[]
[null,null,null,null,null,"Seleccione","Seleccione"]
[null,null,null,null,null,4012," SALUD PREFERENCIAL",4012]
[null,null,null,null,null,4011," FULL SALUD",4011]
[null,null,null,null,null,4004," SALUD RED MÉDICA",4004]
[null,null,null,null,null,4038," SALUD RED PREFERENTE",4038]
[null,null,null,null,null,4007," SALUD DE ORO A ",4007]
[null,null,null,null,null,4007," SALUD DE ORO B ",4007]
[null,null,null,null,null,4007," SALUD DE ORO C ",4007]
[null,null,null,null,null,4016," SALUD RED MED HOSP",4016]
[null,null,null,null,null,4095," SALUD RED PRIVADA",4095]
[null,null,null,null,null,4049," SALUD PREFERENCIAL FFVV",4049]
[null,null,null,null,null,4052," FULL SALUD FFVV",4052]
[null,null,null,null,null,4050," SALUD RED MÉDICA FFVV",4050]
[null,null,null,null,null,4054," SALUD RED PREFERENTE FFVV",4054]
[null,null,null,null,null,4053," SALUD DE ORO FFVV A ",4053]
[null,null,null,null,null,4053," SALUD DE ORO FFVV B ",4053]
[null,null,null,null,null,4053," SALUD DE ORO FFVV C ",4053]
[null,null,null,null,null,4051," SALUD RED MED HOSP FFVV",4051]
[null,null,null,null,null,4093," SALUD RED PRIVADA FFVV",4093]
[null,null,null,null,null,4134," SALUD FLEXIBLE",4134]
[null,null,null,null,null,4104," SALUD RED MEDICA PLAN FAMILIA ",4104]
[]
[]
[]
[null,null,null,null,null,"Seleccione","Seleccione"]
[null,null,null,null,null,1,"RETIRO DE LA EMPRESA"]
[null,null,null,null,null,2,"RETIRO POR LÍMITE DE EDAD"]
[null,null,null,null,null,3,"DECESO"]
[null,null,null,null,null,4,"COSTO DE PLAN"]
[null,null,null,null,null,5,"INSTATISFACCIÓN DEL SERVICIO RIMAC"]
[null,null,null,null,null,6,"INSTATISFACCIÓN DEL SERVICIO PROVEEDOR"]
[null,null,null,null,null,7,"AFILIACIÓN A OTRO SEGURO"]
[null,null,null,null,null,8,"OTROS"]
[null,null,null,null,null,9,"FALTA DE PAGO"]
[null,null,null,null,null,10,"EMPRESA SE RETIRA A OTRA EPS"]
[null,null,null,null,null,11,"FIN DE LATENCIA"]
[null,null,null,null,null,12,"TRASLAPE DE VIGENCIA"]
[]
[null,null,null,null,null,"Seleccione","Seleccione"]
[null,null,null,null,null,1,"DESCUENTO POR GRUPO"]
[null,null,null,null,null,2,"DESCUENTO CONTRA COMISIÓN"]
[null,null,null,null,null,3,"DESCUENTO POR CAMPAÑA"]
[null,null,null,null,null,4,"OTROS MOTIVOS"]
[]
[null,null,null,null,null,"Seleccione"]
[null,null,null,null,null,"4012 - AMI SALUD PREFERENCIAL"]
[null,null,null,null,null,"4011 - AMI FULL SALUD"]
[null,null,null,null,null,"4004 - AMI SALUD RED MÉDICA"]
[null,null,null,null,null,"4038 - AMI SALUD RED PREFERENTE"]
[null,null,null,null,null,"4007 - AMI SALUD DE ORO A - COMPLETO"]
[null,null,null,null,null,"4007 - AMI SALUD DE ORO B - RED / RED MÉDICA"]
[null,null,null,null,null,"4007 - AMI SALUD DE ORO C - RED PREFERENTE"]
[null,null,null,null,null,"4016 - AMI SALUD RED MED HOSP"]
[null,null,null,null,null,"4095 - AMI SALUD RED PRIVADA"]
[null,null,null,null,null,"4049 - AMI SALUD PREFERENCIAL FFVV"]
[null,null,null,null,null,"4052 - AMI FULL SALUD FFVV"]
[null,null,null,null,null,"4050 - AMI SALUD RED MÉDICA FFVV"]
[null,null,null,null,null,"4054 - AMI SALUD RED PREFERENTE FFVV"]
[null,null,null,null,null,"4053 - AMI SALUD DE ORO FFVV A - COMPLETO"]
[null,null,null,null,null,"4053 - AMI SALUD DE ORO FFVV B - RED / RED MÉDICA"]
[null,null,null,null,null,"4053 - AMI SALUD DE ORO FFVV C - RED PREFERENTE"]
[null,null,null,null,null,"4051 - AMI SALUD RED MED HOSP FFVV"]
[null,null,null,null,null,"4093 - AMI SALUD RED PRIVADA FFVV"]
[null,null,null,null,null,"4134 - AMI SALUD FLEXIBLE"]
[null,null,null,null,null,"4104 - AMI SALUD RED MEDICA PLAN FAMILIA "]
[]
[]
[]
[]
[null,null,null,null,null,"Soat"]
[null,null,null,null,null,"Operación","Casilla"]
[null,null,null,null,null,"Póliza Nueva","recepcion@rimac.com.pe"]
[null,null,null,null,null,"Inclusión","recepcion@rimac.com.pe"]
[null,null,null,null,null,"Nueva póliza TPU - TPI","recepcionformatos@rimac.com.pe"]
[null,null,null,null,null,"Inclusión TPU - TPI","recepcionformatos@rimac.com.pe"]
[null,null,null,null,null,"Renovación TPI/TPU","recepcionformatos@rimac.com.pe"]
[]
[null,null,null,null,null,"soat"]
[null,null,null,null,null,"Inclusión","recepcionformatos@rimac.com.pe"]
[null,null,null,null,null,"Nueva póliza","recepcion@rimac.com.pe"]
[]
[null,null,null,null,null,"Vehicular"]
[null,null,null,null,null,"Operación","Casilla"]
[null,null,null,null,null,"Endoso de Prórroga","recepcionformatos@rimac.com.pe"]
[null,null,null,null,null,"Endoso de Cesión de derecho","recepcionformatos@rimac.com.pe"]
[null,null,null,null,null,"Rehabilitación","recepcionformatos@rimac.com.pe"]
[null,null,null,null,null,"Modificación de Condiciones","recepcionformatos@rimac.com.pe"]
[null,null,null,null,null,"Endoso de Datos de la Unidad","recepcionformatos@rimac.com.pe"]
[null,null,null,null,null,"Actualización de datos al cliente","recepcionformatos@rimac.com.pe"]
[null,null,null,null,null,"Cambio de Contratante/ Asegurado/ Responsable de Pago","recepcionformatos@rimac.com.pe"]
[null,null,null,null,null,"Anulacion","recepcionformatos@rimac.com.pe"]
[null,null,null,null,null,"Rehacer","recepcionformatos@rimac.com.pe"]
[null,null,null,null,null,"Endoso de regularización de inspección","recepcion@rimac.com.pe"]